Workbook

Sheet Allg. Angaben
A2: Allgemeine Angaben zur Lohnabrechnung 2026
A4: Arbeitnehmer / -in
A6: Personalien:
A7: Vorname / Name: * | H7: Gelbe Felder können jeweils ausgefüllt werden.
A8: Strasse: * | G8: * | H8: Pflichtfelder: Die mit Sternchen (*) markierten Felder müssen ausgefüllt werden!
A9: PLZ / Ort: *
A10: Jahrgang: *
A11: Geschlecht: *
A12: AHV-Nr. *
A13: Geburtsdatum:
A14: Telefonnummer: | G14: Pensionskasse:
A15: Pensionsalter erreicht: | G15: Übergangsbestimmungen bei Frauen mit Jahrgang 1961- 1963 beachten
G16: Das Referenzalter je Pensionskasse muss beachtet werden (Agrisano: Die Beitragspflicht endet mit dem Erreichen des Referenzalters)
A17: Anstellung:
A18: Hütte zur Verfügung: | G18: Logis:
A19: Sozialversicherung Naturalleistungen: | G19: Die Abgaben der Sozialversicherung auf Naturalleistungen (Kost und Logis etc.) sind grundsätzlich vom Arbeitnehmer(-in zu übernehmen. (vgl. Richtlohn).
A20: von: * | G20: Anderenfalls muss der Arbeitnehmer/ -in die gesamten Sozialversicherungsbeiträge der Natuarleistungen tragen.
A21: bis: * | G21: Bruttolohn:
A22: entspricht Anzahl Tage: | B22: =IF(B20="","",B21-B20+1) ->  | G22: Im Bruttolohn muss die Kost und Logis (falls Hütte vorhanden) enthalten sein.
A23: Bruttolohn pro Tag* | C23: (Naturalleistungen wie Kost und Logis enthalten)
A24: entspricht Bruttolohn: | B24: =IF(B23="",0,B22*B23) -> 0 | C24: (Naturalleistungen wie Kost und Logis enthalten) | G24: Monatslohn (Quellensteuer): | H24: Berechnung gemäss Steuerverwaltung Graubünden (Kreisschreiben 45) für Quellensteuer
G25: Anzahl Anstellungstage im April | J25: max. 30 Tage
A26: Quellensteuer (ausländische Angestellte): | G26: Anzahl Anstellungstage im Mai | J26: max. 31 Tage
A27: Zivilstand: | G27: Anzahl Anstellungstage im Juni | J27: max. 30 Tage
A28: Doppelverdiener: | G28: Anzahl Anstellungstage im Juli | J28: max. 31 Tage
A29: Anzahl Kinder: | G29: Anzahl Anstellungstage im August | J29: max. 31 Tage
A30: Mitglied Kirche: | G30: Anzahl Anstellungstage im September | J30: max. 30 Tage
A31: Monatslohn (Prämienstufe) | B31: =IF(AND(B24>0,I32=0),ROUND(B24/(B22-Hilfstabelle2!C19)*30,2),0) -> 0 | G31: Anzahl Anstellungstage im Oktober | J31: max. 31 Tage
H32: noch zu verteilen: | I32: =IF(B22="","",B22-SUM(I25:I31)) ->  | J32: Tage
A33: Arbeitgeber / -in
A35: Name Alp: *
A36: Vorname / Name: *
A37: Strasse: *
A38: PLZ: *
A39: Ort: *
A40: Telefonnummer: *
A41: Datum Lohnabrechnung: *
A42: Status der Lohnabrechnung: | B42: provisorisch | G42: Status: | H42: provisorisch: Anhang zum Arbeitsvertrag bei Vertragsabschluss
H43: definitiv: Definitive Lohnabrechnung Ende Alpsommer
A44: Für eine unsachgemässe Nutzung wird keine Haftung übernommen!
A45: Dieses Programm ist ausschliesslich für die Lohnabrechnung von Alppersonal im Kanton GR
A46: und für Alpen mit Anschlussvereinbarung einer übrigen Pensionskasse zu verwenden!

Sheet Lohnabrechnung
A2: Lohnabrechnung 2026 | E2: ="Status: "&'Allg. Angaben'!B42 -> Status: provisorisch
A3: Arbeitgeber: | C3: =IF('Allg. Angaben'!B35>0,'Allg. Angaben'!B35,"") -> 
A4: Name des Arnehmer/-in: | C4: =IF('Allg. Angaben'!B7>0,'Allg. Angaben'!B7,"") -> 
A7: AHV pflichtige Lohnbestandteile
A8: Grundlohn | E8: =IF('Allg. Angaben'!B24="","",'Allg. Angaben'!B24/(1+SUM(Hilfstabelle2!A10:A12))) -> 0
A9: =Hilfstabelle2!A10*100& "% Ferienentschädigung" -> 10.64% Ferienentschädigung | E9: =Hilfstabelle2!A10*$E$8 -> 0
A10: =Hilfstabelle2!A11*100& "% Freizeitentschädigung" -> 16.67% Freizeitentschädigung | E10: =Hilfstabelle2!A11*$E$8 -> 0 | J10: Bruttolohn inkl. Zuschläge (AHV-pflichtig)
A11: =ROUND(Hilfstabelle2!A12*100,2)&"% Feiertagsentschädigung (1. August)" -> 0% Feiertagsentschädigung (1. August) | E11: =ROUND(Hilfstabelle2!A12*$E$8,2) -> 0 | J11: Dieser Betrag muss der Sozialversicherung gemeldet werden
A12: =IF('Allg. Angaben'!B15="Nein","Bruttolohn inkl. Zuschläge (AHV-pflichtig)","Bruttolohn inkl. Zuschläge") -> Bruttolohn inkl. Zuschläge | E12: =IF('Allg. Angaben'!B24="",0,'Allg. Angaben'!B24) -> 0
A13: Freibetrag für Personen im Rentenalter | E13: =IF(OR(H14="",'Allg. Angaben'!B15="Nein"),0,1400*H14) -> 0 | G13: Freibetrag Pensionsalter | J13: Freibetrag:
A14: Abzug Naturalleistungen (Ausnahmeregelung Sozialversicherung) | E14: =IF('Allg. Angaben'!B19=Hilfstabelle2!E3,0,E31) -> 0 | G14: Anzahl Monate in Anstellung: | J14: Massgenbend sind die Anzahl angebrochene oder ganze Monate in Anstellung
A15: =IF('Allg. Angaben'!B15="Nein","Bruttolohn inkl. Zuschläge (Basis Arbeitnehmer/ -in)","Bruttolohn inkl. Zuschläge (AHV-pflichtig)") -> Bruttolohn inkl. Zuschläge (AHV-pflichtig) | E15: =IF((E13+E14)<=E12,E12-E13-E14,0) -> 0 | G15: Angebrochene oder ganze Monate in Anstellung
A17: Versicherungen | C17: Prämie | D17: Basis | G17: Prämie Pensionskasse | J17: Pensionskasse:
A18: AHV/IV/EO | C18: 0.053 | D18: =E15 -> 0 | E18: =ROUND($D$18*C18*20,0)/20 -> 0 | G18: Agrisano Pencas | J18: Bei Agrisano Pencas wird das Referenzalter am Monatsersten nach dem 65. Geburtstag erreicht. Für Frauen mit den Jahrgängen 1961
A19: ALV | C19: 0.011 | D19: =E15 -> 0 | E19: =IF('Allg. Angaben'!B15="ja",0,ROUND($D$19*C19*20,0)/20) -> 0 | G19: Plan: | H19: Plan A | J19: bis 1963 gelten Übergangsbestimmungen. Bei Agrisano Pencas endet die Beitragspflicht mit dem Erreichen des Referenzalters. Bitte
A20: Pensionskasse* | B20: Übrige Anbieter | C20: =IF('Allg. Angaben'!B21="","",Hauptblatt!S14) ->  | D20: =E12 -> 0 | E20: =IF(B20="",0,VLOOKUP(B20,G23:H24,2,FALSE)) -> 0 | G20: Koordinationsabzug: | H20: Mit Koordinationsabzug | J20: setzen Sie für eine korrekte Berechnung bei «Anstellung bis» den letzten Tag des Monats ein, in dem die versicherte Person das 65. Altersjahr erreicht
A21: Nichtberufsunfall* | B21: ÖKK Globalvers. | C21: =VLOOKUP(B21,G27:H29,2,FALSE) -> 0.01641 | D21: =E12 -> 0 | E21: =ROUND($E$12*C21*20,0)/20 -> 0 | G21: Verwaltungskostentarif: | H21: Standardtarif
A22: Krankentaggeld * | B22: ÖKK Globalvers., Wartefrist 2 Tage | C22: =VLOOKUP(B22,G32:H39,2,FALSE) -> 0.0135 | D22: =E12 -> 0 | E22: =ROUND($E$12*C22*20,0)/20 -> 0 | G22: Zusatzplan: | H22: Kein Zusatzplan | J22: Krankentaggeld:
A23: Abzüge Versicherungen | E23: =SUM(E18:E22) -> 0 | G23: Agrisano Pencas | H23: =IF('Allg. Angaben'!B24="","",IF(AND('Allg. Angaben'!B10<2009,C20>92,Hauptblatt!S42>0),Hauptblatt!S42,0)) -> 0 | J23: Bitte Wartefrist gemäss Vereinbarung wählen.
G24: Übrige Anbieter
A25: Naturalleistungen | B25: Anzahl | C25: Preis | J25: Naturallohn:
A26: Frühstück | C26: 3.5 | E26: =C26*B26 -> 0 | G26: Prämie Nichtberufsunfallversicherung | J26: Summe aus Kost und Logis. Zahl welche auf den Lohnausweis übertragen wird.
A27: Mittag | C27: 10 | E27: =C27*B27 -> 0 | G27: ÖKK Globalvers. | H27: 0.01641
A28: Abend | C28: 8 | E28: 0 | G28: Agrisano Pencas | H28: 0.01607
A29: Logis | B29: =IF('Allg. Angaben'!B18="Nein","",'Allg. Angaben'!B22) ->  | C29: 11.5 | E29: =IF(B29="",0,C29*B29) -> 0 | G29: Übrige Anbieter
A30: andere Naturallohnbestandteile
A31: Naturallohn | E31: =SUM(E26:E30) -> 0 | G31: Prämie Krankentaggeld
G32: ÖKK Globalvers., Wartefrist 2 Tage | H32: 0.0135
A33: Abzüge total | E33: =E23+E31 -> 0 | G33: ÖKK Globalvers., Wartefrist 14 Tage | H33: 0.00825
G34: ÖKK Globalvers., Wartefrist 30 Tage | H34: 0.00525
A35: Nettolohn | E35: =E12-E33 -> 0 | G35: Agrisano Pencas, Wartefrist 1 Tag | H35: 0.01915
G36: Agrisano Pencas, Wartefrist 14 Tage | H36: 0.00835
A37: Nicht AHV pflichtige Lohnbestandteile | G37: Agrisano Pencas, Wartefrist 30 Tage | H37: 0.0047
A38: Kinderzulagen | G38: Agrisano Pencas, Wartefrist 60 Tage | H38: 0.00375
G39: Übrige Anbieter
A43: Spezielle Abzüge | J43: Krankenkasse:
A44: Krankenkasse | J44: Wird die Krankenkasse durch den Arbeitnehmer bezahlt, muss hier nichts in Abzug gebracht werden. | R44: Link Tarife
A45: Quellensteuer | B45: Tarif (%): | E45: =IF(C45="",0,ROUND(E12*C45*20,0)/20) -> 0
A46: Vorschuss | J46: Quellensteuer:
J47: Die Quellensteuer muss für Ausländer in Abzug gebracht werden. -->
A48: Auszahlung | E48: =E35+SUM(E38:E41)-SUM(E44:E46) -> 0
A50: Datum: | B50: ='Allg. Angaben'!B41 -> 00:00:00
A52: Unterschriften:
B53: Arbeitgeber/ -in | E53: Arbeitnehmer/ -in

Sheet Zusammenzug
A2: Zusammenzug Kosten 2026
A4: Kosten Arbeitnehmer / -in
A6: Abzug | C6: Prämie | D6: Basis | E6: Betrag
A7: AHV/IV/EO | C7: 0.053 | D7: =Lohnabrechnung!D18 -> 0 | E7: =Lohnabrechnung!E18 -> 0
A8: ALV | C8: 0.011 | D8: =Lohnabrechnung!D19 -> 0 | E8: =Lohnabrechnung!E19 -> 0
A9: Pensionskasse | E9: =Lohnabrechnung!E20 -> 0
A10: Nichtberufsunfall | C10: =Lohnabrechnung!C21 -> 0.01641 | D10: =Lohnabrechnung!D21 -> 0 | E10: =Lohnabrechnung!E21 -> 0
A11: Krankentaggeld | C11: =Lohnabrechnung!C22 -> 0.0135 | D11: =Lohnabrechnung!D22 -> 0 | E11: =Lohnabrechnung!E22 -> 0
A13: Total Versicherungskosten: | E13: =SUM(E7:E11) -> 0
A15: Total Kost und Logis: | E15: =Lohnabrechnung!E31 -> 0
A17: Kosten Arbeitgeber / -in
A19: Abzug | C19: Prämie | D19: Basis | E19: Betrag
A20: AHV/IV/EO | C20: 0.053 | D20: =Lohnabrechnung!D18+2*Lohnabrechnung!E14 -> 0 | E20: =ROUND(D20*C20*20,0)/20 -> 0
A21: ALV | C21: 0.011 | D21: =Lohnabrechnung!D19+2*Lohnabrechnung!E14 -> 0 | E21: =IF('Allg. Angaben'!B15="ja",0,ROUND(D21*C21*20,0)/20) -> 0
A22: Pensionskasse | E22: =E9 -> 0
A23: Berufsunfall | B23: Berufsunfall Agrisano Pencas | C23: =VLOOKUP(B23,G24:H26,2,FALSE) -> 0.03083 | D23: =Lohnabrechnung!E12 -> 0 | E23: =ROUND(D23*C23*20,0)/20 -> 0 | G23: Prämie Berufsunfallversicherung
A24: Krankentaggeld | C24: =C11 -> 0.0135 | D24: =Lohnabrechnung!E12 -> 0 | E24: =E11 -> 0 | G24: Berufsunfall Agrisano Pencas | H24: 0.03083
A25: Familienzulage | C25: 0.02 | D25: =Lohnabrechnung!E12 -> 0 | E25: =ROUND(D25*C25*20,0)/20 -> 0 | G25: Berufsunfall ÖKK Globalvers. | H25: 0.03276
G26: Übrige Anbieter
A27: Total Versicherungskosten: | E27: =SUM(E20:E25) -> 0
A29: Bruttolohn (nach Abzug Logis): | E29: =IF('Allg. Angaben'!B23="","",Lohnabrechnung!E12-Lohnabrechnung!E29) -> 
A31: Personalaufwand (ohne Logis): | E31: =IF(E29="","",E29+E27) -> 

Sheet Lohnausweis
A1: Hier klicken! Bitte verwenden Sie das Original-Formular des Bundes. Dieser Lohnausweis dient nur zur Berechnung.
A3: A | C3: x | D3: Lohnausweis - Certificat de salaire - Certificato di salario
A5: B | D5: Rentenbescheinigung - Attestation de rentes - Attestazione delle rendite
A7: C | I7: =IF('Allg. Angaben'!B12>0,'Allg. Angaben'!B12,"") ->  | P7: F | Q7: Unentgeltliche Beförderung zwischen Wohn- und Arbeitsort
B8: AHV-Nr. | C8: AHV-Nr. | I8: Neue AHV-Nr.
A10: D | B10: 2026 | E10: E | F10: =IF('Allg. Angaben'!B20>0,'Allg. Angaben'!B20,"") ->  | J10: =IF('Allg. Angaben'!B21>0,'Allg. Angaben'!B21,"") ->  | P10: G | Q10: Kantineverpflegung / Lunch-Checks
B11: Jahr | F11: von | J11: bis
A14: H | O14: =IF('Allg. Angaben'!B7>0,'Allg. Angaben'!B7,"") -> 
O16: =IF('Allg. Angaben'!B8>0,'Allg. Angaben'!B8,"") -> 
O18: =IF('Allg. Angaben'!B9>0,'Allg. Angaben'!B9,"") -> 
U25: CHF
A26: 1. | B26: Lohn soweit nicht unter Ziffer 2-7 aufzuführen / Rente | C26: Lohn soweit nicht unter Ziffer 2-7 aufzuführen / Rente | U26: =Lohnabrechnung!E12-Lohnabrechnung!E31+Lohnabrechnung!E38 -> 0 | W26: Lohn: | X26: Lohn abzüglich Kost und Logis. Falls Kinderzulagen ausbezahlt werden,
A27: 2. | B27: Gehaltsnebenleistungen | C27: Gehaltsnebenleistungen | H27: 2.1 | I27: Verpflegung, Unterkunft | T27: + | U27: =Lohnabrechnung!E31 -> 0 | X27: sind diese hier aufgeführt.
H28: 2.2 | I28: Privatanteil Geschäftswagen | T28: +
H29: 2.3 | I29: Andere | K29: Art | T29: +
A30: 3. | B30: Unregelmässige Leistungen | C30: Unregelmässige Leistungen | I30: Art
T31: +
A32: 4. | B32: Kapitalleistungen | C32: Kapitalleistungen | G32: Art | T32: +
A33: 5. | C33: Beteiligungsrechte gemäss Beiblatt | T33: +
A34: 6. | B34: Verwaltungsratsentschädigungen | C34: Verwaltungsratsentschädigungen | T34: +
A35: 7. | B35: Andere Leistungen | C35: Andere Leistungen | G35: Art | T35: +
A37: 8 | B37: Bruttolohn total / Rente | C37: Bruttolohn total / Rente | T37: = | U37: =SUM(U26:U35) -> 0 | W37: Bruttolohn: | X37: Stimmt mit dem Bruttolohn auf der Lohnabrechnung nur überein, sofern
A38: 9. | B38: Beiträge AHV / IV / EO / ALV / NBUV | C38: Beiträge AHV / IV / EO / ALV / NBUV | T38: - | U38: =Lohnabrechnung!E18+Lohnabrechnung!E19+Lohnabrechnung!E21 -> 0 | X38: keine Kinderzulagen im Lohn enthalten sind. Zu melden (AHV, BVG, UVG/KTG)
A39: 10. | B39: Berufliche Vorsorge | C39: Berufliche Vorsorge | G39: 2. Säule | I39: 10.1 | J39: ordentliche Beiträge | T39: - | U39: =Lohnabrechnung!E20 -> 0 | X39: ist der Bruttolohn auf der Lohnabrechnung!
I40: 10.2 | J40: Beiträge für den Einkauf | T40: -
A41: 11. | B41: Nettolohn / Rente | C41: Nettolohn / Rente | T41: = | U41: =IF(U26>0,U37-U38-U39-U40,"") ->  | W41: Nettolohn: | X41: Stimmt nicht mit dem Nettolohn auf der Lohnabrechnung überein. Differenz:
B42: In die Steuererklärung übertragen | C42: In die Steuererklärung übertragen | X42: Kost und Logis
A43: 12. | B43: Quellensteuerabzug | C43: Quellensteuerabzug | U43: =Lohnabrechnung!E45 -> 0 | X43: Prämie Krankentaggeld
A44: 13. | B44: Spesenvergütungen | C44: Spesenvergütungen | H44: nicht in Bruttolohn (gemäss Ziffer 8) enthalten | X44: Falls vorhanden: Kinderzulagen
C45: 13.1 | D45: Effektive Spesen | I45: 13.1.1 | J45: Reise, Verpflegung, Übernachtung
I46: 13.1.2 | J46: Übrige | L46: Art
C47: 13.2 | D47: Pauschalspesen | I47: 13.2.1 | J47: Repräsentation
I48: 13.2.2 | J48: Auto
I49: 13.2.3 | J49: Übrige | L49: Art
C50: 13.3 | D50: Beiträge an die Weiterbildung
A51: 14. | B51: Weitere Gehaltsnebenleistungen | C51: Weitere Gehaltsnebenleistungen | J51: Art
A55: 15. | B55: Bemerkungen | C55: Bemerkungen | F55: KTG: | H55: =Lohnabrechnung!E22 -> 0
F57: =IF('Allg. Angaben'!B35="","","Arbeitsort:") ->  | H57: =IF('Allg. Angaben'!B35="","",'Allg. Angaben'!B35) -> 
A59: I | C59: Ort und Datum | I59: Die Richtigkeit und Vollständigkeit | Q59: =IF('Allg. Angaben'!B35>0,'Allg. Angaben'!B35,"") -> 
C60: =IF('Allg. Angaben'!B39>0, 'Allg. Angaben'!B39, "") ->  | I60: bestätigt | Q60: =IF('Allg. Angaben'!B36>0,'Allg. Angaben'!B36,"") -> 
C61: =IF('Allg. Angaben'!B41>0,'Allg. Angaben'!B41,"") ->  | I61: inkl. genauer Anschrift und Telefonnummer | Q61: =IF('Allg. Angaben'!B37>0,'Allg. Angaben'!B37,"") -> 
I62: des Arbeitgebers | Q62: =IF('Allg. Angaben'!B38>0,'Allg. Angaben'!B38 & " "&'Allg. Angaben'!B39,"") -> 
Q63: =IF('Allg. Angaben'!B40>0,'Allg. Angaben'!B40,"") -> 

Sheet Hilfstabelle2 (hidden)
A1: Allgemein
A3: weiblich | B3: Alleinstehend | C3: Ja | D3: 0 | E3: ArbeitnehmerIn (Standard)
A4: männlich | B4: Verheiratet | C4: Nein | D4: 1 | E4: ArbeitgeberIn (Ausnahme)
D5: 2
D6: 3
D7: 4
D8: 5
A9: Lohnabrechnung
A10: =IF('Allg. Angaben'!B10>1976,8.33%,10.64%) -> 0.1064 | B10: Anzahl Ferientage | D10: Zelle jährlich anpassen
A11: 0.1667 | B11: Anzahl Freizeittage
A12: =IF(C20="",0,1/'Allg. Angaben'!B22) -> 0 | B12: Feiertage
A14: Daten für Quellensteuer / Monatlohn
A15: Ganzer Mai enthalten | C15: =IF('Allg. Angaben'!I26>=31,1,0) -> 0
A16: Ganzer Juli enthalten | C16: =IF('Allg. Angaben'!I28>=31,1,0) -> 0
A17: Ganzer August enthalten | C17: =IF('Allg. Angaben'!I29>=31,1,0) -> 0
A18: Ganzer Oktober enthalten | C18: =IF('Allg. Angaben'!I31>=31,1,0) -> 0
A19: Anzahl Monate mit 31 | C19: =SUM(C15:C18) -> 0
A20: 1. August enthalten | C20: =IF(AND('Allg. Angaben'!B20<=Hilfstabelle2!D20,D20<='Allg. Angaben'!B21),"Ja","") ->  | D20: 2026-08-01
A22: Status
A23: definitiv
A24: provisorisch
A26: Monate
A27: 2026-05-01
A28: 2026-06-01
A29: 2026-07-01
A30: 2026-08-01
A31: 2026-09-01
A32: 2026-10-01

Sheet Hilfstabelle (2) (hidden)
A1: Hilfstabelle
A3: Hinweistext VK | B3: =IF(i_vk_tarif>1,VLOOKUP("hinweis1",m_texte,v_sprachcode,FALSE)&" "&VLOOKUP("hinweis2",m_texte,v_sprachcode,FALSE),"") -> 
A4: Hinweistext TZ KoA | B4: =IF(i_koordabz=3,VLOOKUP("hinweis3",m_texte,v_sprachcode,FALSE)&" "&VLOOKUP("hinweis2",m_texte,v_sprachcode,FALSE),"") -> 
A5: Hinweistext Referenzjahr | B5: =IF(bln_hinweis_refjahr,VLOOKUP("hinweis_ref_jahr",m_texte,v_sprachcode,FALSE),"")&" "&IF(bln_hinweis_refjahr_zusatz,VLOOKUP("hinweis_ref_jahr_zusatz",m_texte,v_sprachcode,FALSE),"") -> 
A8: Invalid? | B8: FALSE
A9: Nicht invalid? | B9: TRUE
A10: Eintritt vor 2022? | B10: FALSE
A11: Eff. IV-Faktor | B11: =IF(bln_auf_vor_2022,v_iv_faktor_alt,v_iv_faktor_neu) -> 1
A12: Eff. Reduktion | B12: =IF(bln_auf_vor_2022,v_reduktion_alt,v_reduktion_neu) -> keine Reduktion
A15: Beitragsverz. Gem. Liste | B15: FALSE
A19: Hinweistext Referenzjahr anzeigen? | C19: Mann | D19: Frau | E19: Resultat
A20: Geschlecht? | C20: =i_geschlecht=1 -> FALSE | D20: =i_geschlecht=2 -> FALSE
A21: Aktuelles Jahr = Pensionsjahr | C21: =(p_jahr_valid-f_jahrgang)=65 -> FALSE | D21: =(p_jahr_valid-f_jahrgang)=65 -> FALSE
A22: Jahrgang 1962 | D22: =f_jahrgang=1961 -> FALSE
A23: Haupttext anzeigen? | C23: =AND(C20,C21) -> FALSE | D23: =OR(AND(D20,D21),AND(D20,D22)) -> FALSE | E23: =OR(C23,D23) -> FALSE
A24: Zusatztext anzeigen? | D24: =AND(D20,D22) -> FALSE | E24: =D24 -> FALSE

Sheet Hauptblatt (hidden)
B5: v1.19.1
B7: =VLOOKUP("titel1",m_texte,v_sprachcode,FALSE)&" "&p_jahr_valid&IF(bln_invalid," / "&VLOOKUP("Arbeitnehmer mit IV",m_texte,v_sprachcode,FALSE),"") -> Berechnung der Beiträge an die berufliche Vorsorge 2026
B9: =VLOOKUP("Versicherte Person",m_texte,v_sprachcode,FALSE) -> Versicherte Person | N9: =VLOOKUP("Anstellung",m_texte,v_sprachcode,FALSE) -> Anstellung | Z9: =IF(bln_hinweis_refjahr,VLOOKUP("Hinweis",m_texte,v_sprachcode,FALSE),"") -> 
B11: =VLOOKUP("Vorname / Name",m_texte,v_sprachcode,FALSE) -> Vorname / Name | N11: =VLOOKUP("Jahr",m_texte,v_sprachcode,FALSE) -> Jahr | S11: =p_jahr_valid -> 2026 | Z11: =txt_hinweis_refjahr -> 
B12: =VLOOKUP("AHV-Nr. ",m_texte,v_sprachcode,FALSE) -> AHV-Nr. | N12: =VLOOKUP("Anstellung von",m_texte,v_sprachcode,FALSE) -> Anstellung von | S12: ='Allg. Angaben'!B20 -> 00:00:00
B13: =VLOOKUP("Jahrgang (JJJJ)",m_texte,v_sprachcode,FALSE) -> Jahrgang (JJJJ) | H13: ='Allg. Angaben'!B10 -> 0 | N13: =VLOOKUP("Anstellung bis",m_texte,v_sprachcode,FALSE) -> Anstellung bis | S13: ='Allg. Angaben'!B21 -> 00:00:00
B14: =VLOOKUP("Geschlecht",m_texte,v_sprachcode,FALSE) -> Geschlecht | H14: ='Allg. Angaben'!B11 -> 0 | N14: =VLOOKUP("Anstellungsdauer in Tagen",m_texte,v_sprachcode,FALSE) -> Anstellungsdauer in Tagen | S14: =v_tage -> 1
B15: =IF(bln_invalid,VLOOKUP("IV-Grad / Eintritt AUF",m_texte,v_sprachcode,FALSE),"") ->  | H15: =IF(bln_invalid,TEXT(f_iv_grad,"0%")&" / "&IF(bln_auf_vor_2022,VLOOKUP("vor 2022",m_texte,v_sprachcode,FALSE),VLOOKUP("nach 2022",m_texte,v_sprachcode,FALSE)),"") ->  | N15: =VLOOKUP("AHV-Lohn",m_texte,v_sprachcode,FALSE) -> AHV-Lohn | S15: ='Allg. Angaben'!B24 -> 0 | V15: 1)
N16: ="1) "&VLOOKUP("AHV-Lohn während der Anstellung",m_texte,v_sprachcode,FALSE) -> 1) AHV-Lohn während der Anstellung
B17: =VLOOKUP("Versicherungslösung",m_texte,v_sprachcode,FALSE) -> Versicherungslösung | N17: =VLOOKUP("Versicherter Lohn",m_texte,v_sprachcode,FALSE) -> Versicherter Lohn
B19: =VLOOKUP("Plan",m_texte,v_sprachcode,FALSE) -> Plan | H19: =Lohnabrechnung!H19 -> Plan A | N19: =VLOOKUP("beschäftigungsgrad",m_texte,v_sprachcode,FALSE) -> Beschäftigungsgrad | S19: 1
B20: =VLOOKUP("Koordinationsabzug",m_texte,v_sprachcode,FALSE) -> Koordinationsabzug | H20: =Lohnabrechnung!H20 -> Mit Koordinationsabzug | N20: =VLOOKUP("Minimal koordinierter Lohn",m_texte,v_sprachcode,FALSE) -> Minimal koordinierter Lohn | S20: =IF(f_anstellung_von="",0,v_dauer_min_koord_lohn) -> 10
B21: =VLOOKUP("Verwaltungskostentarif",m_texte,v_sprachcode,FALSE) -> Verwaltungskostentarif | H21: =Lohnabrechnung!H21 -> Standardtarif | N21: =VLOOKUP("Koordinationsabzug",m_texte,v_sprachcode,FALSE) -> Koordinationsabzug | S21: =v_dauer_koord_abzug -> 72.5
B22: =VLOOKUP("Zusatzplan",m_texte,v_sprachcode,FALSE) -> Zusatzplan | H22: =Lohnabrechnung!H22 -> Kein Zusatzplan | N22: =VLOOKUP("Versicherter Lohn",m_texte,v_sprachcode,FALSE) -> Versicherter Lohn | S22: =v_dauer_koord_lohn -> 0
B24: =VLOOKUP("Basisplan",m_texte,v_sprachcode,FALSE)&" "&f_basisplan -> Basisplan Plan A
B26: =VLOOKUP("Sparbeitrag",m_texte,v_sprachcode,FALSE) -> Sparbeitrag | N26: =v_satz_sparpraemie -> 0 | R26: CHF | S26: =v_sparbeitrag -> 0
B27: =VLOOKUP("Risikobeitrag",m_texte,v_sprachcode,FALSE) -> Risikobeitrag | N27: =v_satz_risikopraemie -> 0 | R27: CHF | S27: =v_risikobeitrag -> 0
B28: =VLOOKUP("Verwaltungskosten",m_texte,v_sprachcode,FALSE) -> Verwaltungskosten | N28: =v_dauer_vk_effektiv_satz -> 0 | R28: CHF | S28: =v_dauer_vk_effektiv -> 0
B29: =VLOOKUP("Beitrag Sicherheitsfonds",m_texte,v_sprachcode,FALSE) -> Beitrag Sicherheitsfonds | N29: =v_sifo_satz -> 0 | R29: CHF | S29: =v_sifo_betrag -> 0
B30: =VLOOKUP("Total Beitrag",m_texte,v_sprachcode,FALSE) -> Total Beitrag | R30: CHF | S30: =SUM(S26:U29) -> 0
B32: =IF(i_zusatzplan>0,INDEX(l_zusatzplaene,i_zusatzplan,1),VLOOKUP("Kein Zusatzplan",m_texte,v_sprachcode,FALSE)) -> Kein Zusatzplan
B34: =IF(i_zusatzplan<2,"",VLOOKUP("Sparbeitrag",m_texte,v_sprachcode,FALSE)) ->  | N34: =IF(i_zusatzplan<2,"",v_satz_sparbeitrag_zusatzplan) ->  | R34: CHF | S34: =v_sparbeitrag_zusatzplan -> 0
B35: =IF(i_zusatzplan<4,"",VLOOKUP("Risikobeitrag",m_texte,v_sprachcode,FALSE)) ->  | N35: =IF(i_zusatzplan<4,"",v_satz_risikobeitrag_zusatzplan) ->  | R35: CHF | S35: =v_risikobeitrag_zusatzplan -> 0
B36: =VLOOKUP("Total Beitrag",m_texte,v_sprachcode,FALSE) -> Total Beitrag | R36: CHF | S36: =SUM(S32:U35) -> 0
B38: =VLOOKUP("Total",m_texte,v_sprachcode,FALSE) -> Total
J40: =VLOOKUP("in % vers. Lohn",m_texte,v_sprachcode,FALSE) -> in % vers. Lohn | N40: =VLOOKUP("in % AHV-Lohn",m_texte,v_sprachcode,FALSE) -> in % AHV-Lohn
B41: =VLOOKUP("Total Beitrag",m_texte,v_sprachcode,FALSE) -> Total Beitrag | J41: =v_beitraege_total_satz_vers_lohn -> 0 | N41: =v_beitraege_total_satz_ahv_lohn -> 0 | R41: CHF | S41: =v_beitraege_total -> 0
B42: =VLOOKUP("Maximaler Anteil des Arbeitnehmers",m_texte,v_sprachcode,FALSE) -> Maximaler Anteil des Arbeitnehmers | J42: =v_beitraege_total_satz_vers_lohn_an -> 0 | N42: =v_beitraege_total_satz_ahv_lohn_an -> 0 | R42: CHF | S42: =v_beitraege_total/2 -> 0
B44: =VLOOKUP("text_druck",m_texte,v_sprachcode,FALSE) -> Die Beitragsberechnung beruht auf den erfassten Daten. Massgebend ist schlussendlich die Beitragsrechnung der Agrisano Pencas, welche aufgrund der effektiv gemeldeten AHV-Löhne erstellt wird. Sie beinhaltet zudem einen Zins für das nachschüssige Inkasso. Bei Fragen zur Beitragsrechnung wenden Sie sich bitte an die Agrisano Stiftung Globalversicherung (Tel. 056 461 78 55). Für die Berechnung der Beiträge von (teil-)invaliden Arbeitnehmenden nehmen Sie bitte Kontakt mit der Agrisano Pencas auf.
B48: =IF(v_tage<93,VLOOKUP("text_druck_2",m_texte,v_sprachcode,FALSE),"") -> Die Beitragspflicht für unbefristete Anstellungsverhältnisse gilt ab dem 1. Tag. Bei befristeten Arbeitsverhältnissen gilt die Beitragspflicht wie folgt (Art. 3 Abs. 3 Vorsorgereglement 2025):
C50: =IF(v_tage<93,"•","") -> • | D50: =IF(v_tage<93,VLOOKUP("text_druck_2_1",m_texte,v_sprachcode,FALSE),"") -> Für Anstellungsverhältnisse von höchstens drei Monaten gilt keine Beitragspflicht.
C51: =IF(v_tage<93,"•","") -> • | D51: =IF(v_tage<93,VLOOKUP("text_druck_2_2",m_texte,v_sprachcode,FALSE),"") -> Für Anstellungsverhältnisse, die für mehr als 3 Monate eingegangen werden, gilt die Beitragspflicht ab dem 1. Tag.
C52: =IF(v_tage<93,"•","") -> • | D52: =IF(v_tage<93,VLOOKUP("text_druck_2_3",m_texte,v_sprachcode,FALSE),"") -> Anstellungsverhältnisse, die ohne Unterbruch über die Dauer von drei Monaten hinaus verlängert werden, sind ab dem 1. Tag beitragspflichtig.
C54: =IF(v_tage<93,"•","") -> • | D54: =IF(v_tage<93,VLOOKUP("text_druck_2_4",m_texte,v_sprachcode,FALSE),"") -> Mehrere aufeinanderfolgende Anstellungen, die maximal für drei Monate unterbrochen werden, sind beitragspflichtig, wenn die Gesamtbeschäftigungsdauer mehr als 92 Tage beträgt.
J58: =VLOOKUP("fusszeile",m_texte,v_sprachcode,FALSE) -> Laurstrasse 10 | 5201 Brugg | Telefon +41 (0)56 461 78 11 pencas@agrisano.ch | www.agrisano.ch

Sheet Listenbereiche (hidden)
A1: Listenbereiche
A4: Sprache | B4: Wert | C4: Index | E4: Sprachcode
A5: de | B5: de | C5: =MATCH(f_sprache,l_sprache,0) -> 1 | E5: =v_sprache+1 -> 2
A6: fr
A7: it
A10: Geschlecht_de | B10: Geschlecht_fr | C10: Geschlecht_it | D10: Wert | E10: Index de | F10: Index fr | G10: Index it | H10: Index | I10: l_ges
A11: männlich | B11: masculin | C11: Uomo | D11: =f_geschlecht -> 0 | E11: =IFERROR(MATCH(f_geschlecht,l_geschlecht_de,0),0) -> 0 | F11: =IFERROR(MATCH(f_geschlecht,l_geschlecht_fr,0),0) -> 0 | G11: =IFERROR(MATCH(f_geschlecht,l_geschlecht_it,0),0) -> 0 | H11: =SUM(E11:G11) -> 0 | I11: =l_geschlecht -> männlich
A12: weiblich | B12: feminin | C12: Donna | I12: weiblich
A15: Basispläne | D15: Wert | E15: Index de | F15: Index fr | G15: Index it | H15: Index | I15: l_basisplan
A16: Plan A | B16: Plan A | C16: Piano A | D16: =f_basisplan -> Plan A | E16: =IFERROR(MATCH(f_basisplan,l_basisplaene_de,0),0) -> 1 | F16: =IFERROR(MATCH(f_basisplan,l_basisplaene_fr,0),0) -> 1 | G16: =IFERROR(MATCH(f_basisplan,l_basisplaene_it,0),0) -> 0 | H16: =IF(AND(E16=1,F16=1),1,IF(AND(E16=2,F16=2),2,IF(AND(E16=3,F16=3),3,SUM(E16:G16)))) -> 1 | I16: =l_basisplaene -> Plan A
A17: Plan B | B17: Plan B | C17: Piano B | I17: Plan B
A18: Plan C | B18: Plan C | C18: Piano C | I18: Plan C
A21: koord_abzug_de | B21: koord_abzug_fr | C21: koord_abzug_de | D21: Wert | E21: Index de | F21: Index fr | G21: Index it | H21: Index | I21: l_koordabz
A22: Mit Koordinationsabzug | B22: Avec déduction de coordination | C22: Con deduzione di coordinamento | D22: =f_koord_abzug -> Mit Koordinationsabzug | E22: =IFERROR(MATCH(f_koord_abzug,l_koord_abzug_de,0),0) -> 1 | F22: =IFERROR(MATCH(f_koord_abzug,l_koord_abzug_fr,0),0) -> 0 | G22: =IFERROR(MATCH(f_koord_abzug,l_koord_abzug_it,0),0) -> 0 | H22: =SUM(E22:G22) -> 1 | I22: =l_koord_abzug -> Mit Koordinationsabzug
A23: Ohne Koordinationabzug | B23: Sans déduction de coordination | C23: Senza deduzione di coordinamento | D23: =f_koord_abzug_be -> Gemäss Beschäftigungsgrad | E23: =IFERROR(MATCH(f_koord_abzug_be,l_koord_abzug_de,0),0) -> 3 | F23: =IFERROR(MATCH(f_koord_abzug_be,l_koord_abzug_fr,0),0) -> 0 | G23: =IFERROR(MATCH(f_koord_abzug_be,l_koord_abzug_it,0),0) -> 0 | H23: =SUM(E23:G23) -> 3 | I23: Ohne Koordinationabzug
A24: Gemäss Beschäftigungsgrad | B24: Selon le taux d'occupation | C24: Secondo grado di occupazione | D24: =f_koord_abzug_bele -> Mit Koordinationsabzug | E24: =IFERROR(MATCH(f_koord_abzug_bele,l_koord_abzug_de,0),0) -> 1 | F24: =IFERROR(MATCH(f_koord_abzug_bele,l_koord_abzug_fr,0),0) -> 0 | G24: =IFERROR(MATCH(f_koord_abzug_bele,l_koord_abzug_it,0),0) -> 0 | H24: =SUM(E24:G24) -> 1 | I24: Gemäss Beschäftigungsgrad
A27: l_vk_tarif_de | B27: l_vk_tarif_fr | C27: l_vk_tarif_it | D27: Wert | E27: Index de | F27: Index fr | G27: Index it | H27: Index | I27: l_verwaltungskostentarif
A28: Standardtarif | B28: Tarif standard | C28: Tariffa standard | D28: =f_vk_tarif -> Standardtarif | E28: =IFERROR(MATCH(f_vk_tarif,l_vk_tarif_de,0),0) -> 1 | F28: =IFERROR(MATCH(f_vk_tarif,l_vk_tarif_fr,0),0) -> 0 | G28: =IFERROR(MATCH(f_vk_tarif,l_vk_tarif_it,0),0) -> 0 | H28: =SUM(E28:G28) -> 1 | I28: =l_vk_tarif -> Standardtarif
A29: Verwaltungskostentarif 1 | B29: Tarif de frais administratifs 1 | C29: Tariffa dei costi di gestione 1 | I29: Verwaltungskostentarif 1
A30: Verwaltungskostentarif 2 | B30: Tarif de frais administratifs 2 | C30: Tariffa dei costi di gestione 2 | I30: Verwaltungskostentarif 2
A31: Verwaltungskostentarif 3 | B31: Tarif de frais administratifs 3 | C31: Tariffa dei costi di gestione 3 | I31: Verwaltungskostentarif 3
A32: Verwaltungskostentarif 4 | B32: Tarif de frais administratifs 4 | C32: Tariffa dei costi di gestione 4 | I32: Verwaltungskostentarif 4
A33: Verwaltungskostentarif 5 | B33: Tarif de frais administratifs 5 | C33: Tariffa dei costi di gestione 5 | I33: Verwaltungskostentarif 5
A36: l_zusatzplaene_de | B36: l_zusatzplaene_fr | C36: l_zusatzplaene_it | D36: Wert | E36: Index de | F36: Index fr | G36: Index it | H36: Index | I36: l_zusplaene
A37: Kein Zusatzplan | B37: Sans plan supplementaire | C37: Senza piano supplementare | D37: =f_zusatzplan -> Kein Zusatzplan | E37: =IFERROR(MATCH(f_zusatzplan,l_zusatzplaene_de,0),0) -> 1 | F37: =IFERROR(MATCH(f_zusatzplan,l_zusatzplaene_fr,0),0) -> 0 | G37: =IFERROR(MATCH(f_zusatzplan,l_zusatzplaene_it,0),0) -> 0 | H37: =SUM(E37:G37) -> 1 | I37: =l_zusatzplaene -> Kein Zusatzplan
A38: Zusatzplan E | B38: Plan supplementaire E | C38: Piano supplementare E | I38: Zusatzplan E
A39: Zusatzplan F | B39: Plan supplementaire F | C39: Piano supplementare F | I39: Zusatzplan F
A40: Zusatzplan E+ | B40: Plan supplementaire E+ | C40: Piano supplementare E+ | I40: Zusatzplan E+
A41: Zusatzplan F+ | B41: Plan supplementaire F+ | C41: Piano supplementare F+ | I41: Zusatzplan F+
A44: Invalidität ab 2022
A46: Rentenanspruch | B46: IV-Grad | C46: Faktor | E46: IV-Grad x 100 | F46: =f_iv_grad*100 -> 45
A47: keine Reduktion | B47: 0 | C47: 1 | E47: Faktor | F47: =IF(bln_invalid,VLOOKUP(F46,B47:C78,2,TRUE),1) -> 1
A48: 0.25 | B48: 40 | C48: 0.75 | E48: Reduktion | F48: =INDEX(A47:A78,MATCH(F47,C47:C78,0)) -> keine Reduktion
A49: 0.275 | B49: 41 | C49: 0.725
A50: 0.3 | B50: 42 | C50: 0.7
A51: 0.325 | B51: 43 | C51: 0.675
A52: 0.35 | B52: 44 | C52: 0.65
A53: 0.375 | B53: 45 | C53: 0.625
A54: 0.4 | B54: 46 | C54: 0.6
A55: 0.425 | B55: 47 | C55: 0.575
A56: 0.45 | B56: 48 | C56: 0.55
A57: 0.475 | B57: 49 | C57: 0.525
A58: 0.5 | B58: 50 | C58: 0.5
A59: 0.51 | B59: 51 | C59: 0.49
A60: 0.52 | B60: 52 | C60: 0.48
A61: 0.53 | B61: 53 | C61: 0.47
A62: 0.54 | B62: 54 | C62: 0.46
A63: 0.55 | B63: 55 | C63: 0.45
A64: 0.56 | B64: 56 | C64: 0.44
A65: 0.57 | B65: 57 | C65: 0.43
A66: 0.58 | B66: 58 | C66: 0.42
A67: 0.59 | B67: 59 | C67: 0.41
A68: 0.6 | B68: 60 | C68: 0.4
A69: 0.61 | B69: 61 | C69: 0.39
A70: 0.62 | B70: 62 | C70: 0.38
A71: 0.63 | B71: 63 | C71: 0.37
A72: 0.64 | B72: 64 | C72: 0.36
A73: 0.65 | B73: 65 | C73: 0.35
A74: 0.66 | B74: 66 | C74: 0.34
A75: 0.67 | B75: 67 | C75: 0.33
A76: 0.68 | B76: 68 | C76: 0.32
A77: 0.69 | B77: 69 | C77: 0.31
A78: kein BVG | B78: 70 | C78: 0
A81: Invalidität vor 2022
A83: Rentenanspruch | B83: IV-Grad | C83: Faktor
A84: keine Reduktion | B84: 0 | C84: 1 | E84: IV-Grad x 100 | F84: =f_iv_grad*100 -> 45
A85: 0.25 | B85: 40 | C85: 0.75 | E85: Faktor | F85: =IF(bln_invalid,VLOOKUP(F84,B84:C89,2,TRUE),1) -> 1
A86: 0.5 | B86: 50 | C86: 0.5 | E86: Reduktion | F86: =INDEX(A84:A89,MATCH(F85,C84:C89,0)) -> keine Reduktion
A87: 0.75 | B87: 60 | C87: 0.25
A88: 0.75 | B88: 70 | C88: 0.25
A89: kein BVG | B89: =2/3*100 -> 66.66666667 | C89: 0
A92: Ersteller | B92: Wert
A93: Stefan Binder | B93: de
A94: Beat Nebiker
A95: Silvan Heiniger
A96: Maurus Renggli
A97: Thomas Hauri
A98: Silvia Odermatt

Sheet Hilfstabelle (hidden)
A1: Hilfstabelle
A3: Hinweistext VK | B3: =IF(i_vk_tarif>1,VLOOKUP("hinweis1",m_texte,v_sprachcode,FALSE)&" "&VLOOKUP("hinweis2",m_texte,v_sprachcode,FALSE),"") -> 
A4: Hinweistext TZ KoA | B4: =IF(i_koordabz=3,VLOOKUP("hinweis3",m_texte,v_sprachcode,FALSE)&" "&VLOOKUP("hinweis2",m_texte,v_sprachcode,FALSE),"") -> 
A5: Hinweistext Referenzjahr | B5: =IF(bln_hinweis_refjahr,VLOOKUP("hinweis_ref_jahr",m_texte,v_sprachcode,FALSE),"")&" "&IF(bln_hinweis_refjahr_zusatz,_xlfn.CONCAT(" ",VLOOKUP("hinweis_ref_jahr_zusatz",m_texte,v_sprachcode,FALSE)),"") -> 
A8: Invalid? | B8: FALSE
A9: Nicht invalid? | B9: TRUE
A10: Eintritt vor 2022? | B10: FALSE
A11: Eff. IV-Faktor | B11: =IF(bln_auf_vor_2022,v_iv_faktor_alt,v_iv_faktor_neu) -> 1
A12: Eff. Reduktion | B12: =IF(bln_auf_vor_2022,v_reduktion_alt,v_reduktion_neu) -> keine Reduktion
A15: Beitragsverz. Gem. Liste | B15: FALSE
A19: Hinweistext Referenzjahr anzeigen? | C19: Mann | D19: Frau | E19: Resultat
A20: Geschlecht? | C20: =i_geschlecht=1 -> FALSE | D20: =i_geschlecht=2 -> FALSE
A21: Aktuelles Jahr = Pensionsjahr | C21: =(p_jahr_valid-f_jahrgang)=65 -> FALSE | D21: =(p_jahr_valid-f_jahrgang)=65 -> FALSE
A22: Jahrgang 1961/1962 | D22: =OR(f_jahrgang=1961,f_jahrgang=1962) -> FALSE
A23: Haupttext anzeigen? | C23: =AND(C20,C21) -> FALSE | D23: =OR(AND(D20,D21),AND(D20,D22)) -> FALSE | E23: =OR(C23,D23) -> FALSE
A24: Zusatztext anzeigen? | D24: =AND(D20,D22) -> FALSE | E24: =D24 -> FALSE

Sheet Berechnungen (hidden)
A1: Berechnungen
A4: Anstellungsdauer | E4: Bemerkung
A5: Start Anstellung | B5: =f_anstellung_von -> 00:00:00
A6: Ende Anstellung | B6: =f_anstellung_bis -> 00:00:00
A7: Anzahl Tage | B7: =IF(OR(f_anstellung_von="",f_anstellung_bis="",f_anstellung_bis-f_anstellung_von+1<0),1,B6-B5+1) -> 1
A8: Beschäftigungsgrad | B8: =f_besch_grad -> 1
A10: Parameter | B10: ordentlich | E10: Bemerkung
A11: Max. AHV-Jahresrente | B11: =p_max_ahv_rente -> 30240
A12: Min. koordinierter Lohn | B12: =p_max_ahv_rente/8 -> 3780
A13: Max. Koordinationsabzug | B13: =p_max_ahv_rente/8*7*v_eff_iv_faktor -> 26460
A14: Mindestjahreslohn | B14: =p_max_ahv_rente/8*6*v_eff_iv_faktor -> 22680
A15: Max. vers. BVG Lohn | B15: =B11*30*v_eff_iv_faktor -> 907200
A16: Max. koordinierter Lohn | B16: =p_max_ahv_lohn-p_koordabzug -> 64260
A17: Max. AHV Lohn | B17: =p_max_ahv_rente*3*v_eff_iv_faktor -> 90720
A19: Jahr Beginn | B19: =DATE(p_jahr_valid,1,1) -> 2026-01-01
A20: Jahr Ende | B20: =DATE(p_jahr_valid,12,31) -> 2026-12-31
A21: Tage im aktuellen Jahr | B21: =B20-B19+1 -> 365
A22: Alter | B22: =p_jahr_valid-f_jahrgang -> 2026
A25: Lohnberechnungen | B25: ordentlich | C25: mit Koord.abzug | E25: Bemerkung
A26: AHV-Lohn während der Anstellung | B26: =f_ahv_lohn -> 0
A27: AHV-Lohn auf Kalenderjahr hochgerechnet | B27: =B26/v_tage*p_tage_akt_jahr -> 0
A28: Min. koord. Lohn (auf Dauer) | B28: =ROUND(p_min_koord_lohn/p_tage_akt_jahr*v_tage,0) -> 10 | C28: =p_min_koord_lohn/p_tage_akt_jahr*v_tage -> 10.35616438
A29: Koordinationabzug (auf Dauer) | B29: =ROUND(IF(i_koordabz=1,p_koordabzug/p_tage_akt_jahr*v_tage,IF(i_koordabz=3,p_koordabzug/p_tage_akt_jahr*v_tage*f_besch_grad,0))*2,1)/2 -> 72.5 | C29: =ROUND(p_koordabzug/p_tage_akt_jahr*v_tage,0) -> 72
A30: Max. vers. Lohn BVG (auf Dauer) | B30: =p_max_lohn_bvg/p_tage_akt_jahr*v_tage -> 2485.479452 | C30: =p_max_lohn_bvg/p_tage_akt_jahr*v_tage -> 2485.479452
A31: Max. koord. vers. Lohn (auf Dauer) | B31: =v_dauer_max_vers_lohn-v_dauer_koord_abzug -> 2412.979452 | C31: =v_dauer_max_vers_lohn-C29 -> 2413.479452
A32: Koord. Lohn (auf Dauer) | B32: =ROUND(IF(bln_ok,MIN(v_dauer_max_vers_koord_lohn,MAX(f_ahv_lohn-v_dauer_koord_abzug,v_dauer_min_koord_lohn)),0),0) -> 0 | C32: =IF(bln_ok,MIN(C31,MAX(f_ahv_lohn-C29,C28)),0) -> 0
A33: überobl. vers Lohn | B33: =IF(i_koordabz=3,v_dauer_koord_lohn-C32+C33,IF(bln_lohn_groesser_max_ahv,v_dauer_koord_lohn-p_max_koord_lohn/p_tage_akt_jahr*v_tage,0)) -> 0 | C33: =IF(bln_lohn_groesser_max_ahv,C32-p_max_koord_lohn/p_tage_akt_jahr*v_tage,0) -> 0
A34: BVG vers. Lohn | B34: =v_dauer_koord_lohn-B33 -> 0
A37: Beiträge Basisplan | B37: ordentlich | C37: mit Koord.abzug | E37: Bemerkung
A38: Total Beitragssatz | B38: =IF(bln_ok,INDEX(m_basistarife,MATCH(f_jahrgang,l_jahrgaenge_basisplan,-1),i_basisplan*2+IF(i_geschlecht=2,1,0))-INDEX(l_vk_rabattsatz,i_vk_tarif,1),0) -> 0
A39: Sparbeitrag Satz | B39: =IF(bln_ok,ROUND(INDEX(m_sparpraemien,MATCH(v_alter,l_alter_sparpraemie,1),2+IF(i_geschlecht=2,1,0))/(1+p_zins),5),0) -> 0
A40: Sparbeitrag | B40: =ROUND(v_satz_sparpraemie*v_dauer_koord_lohn,1) -> 0
A41: Risikobeitrag Satz | B41: =ROUND(IF(bln_ok,v_satz_total-v_satz_sparpraemie-v_vk_theoretisch_satz-v_sifo_satz,0),5) -> 0
A42: Risikobeitrag | B42: =ROUND(v_satz_risikopraemie*v_dauer_koord_lohn,1) -> 0
A43: VK Satz theoretisch | B43: =IF(bln_ok,INDEX(l_verwaltungskostensaetze,MATCH(f_jahrgang,l_jahrgaenge_basisplan,-1),1)-INDEX(l_vk_rabattsatz,i_vk_tarif,1),0) -> 0
A44: VK max (auf Dauer) | B44: =IF(bln_ok,INDEX(l_vk_maximalbetrag,i_vk_tarif,1)/p_tage_akt_jahr*v_tage,0) -> 0
A45: VK theoretisch | B45: =B43*v_dauer_koord_lohn -> 0
A46: VK effektiv (auf Dauer) | B46: =IF(bln_ok,ROUND(MIN(B44:B45),1),0) -> 0
A47: VK Satz effektiv | B47: =IF(v_dauer_koord_lohn=0,0,IF(bln_ok,v_dauer_vk_effektiv/v_dauer_koord_lohn,3)) -> 0
A48: SiFo Satz | B48: =IF(bln_ok,INDEX(l_sifo,MATCH(f_jahrgang,l_jahrgaenge_basisplan,-1),1),0) -> 0
A49: SiFo Betrag | B49: =ROUND(v_sifo_satz*v_dauer_koord_lohn,1) -> 0
A50: Total Beitrag Satz | B50: =IFERROR(IF(bln_ok,(v_sparbeitrag+v_risikobeitrag+v_dauer_vk_effektiv+v_sifo_betrag)/v_dauer_koord_lohn,0),0) -> 0
A51: Total Beiträge | B51: =v_satz_total_netto*v_dauer_koord_lohn -> 0
A54: Beiträge Zusatzplan | B54: ordentlich
A55: Sparbeitrag Satz | B55: =IF(AND(bln_ok,bln_zusplan_ok),ROUND(INDEX(m_sparpraemien,MATCH(p_jahr_valid-f_jahrgang,l_alter_sparpraemie,1),i_zusatzplan+2)/(1+p_zins),5),0) -> 0
A56: Sparbeitrag | B56: =ROUND(B55*v_dauer_koord_lohn,1) -> 0
A57: Risikobeitrag Satz | B57: =IF(AND(i_zusatzplan>3,bln_ok),ROUND(INDEX(m_risikopraemien,MATCH(p_jahr_valid-f_jahrgang,l_alter_sparpraemie,1),i_zusatzplan-3),5),0) -> 0
A58: Risikobeitrag | B58: =ROUND(B57*v_dauer_koord_lohn,1) -> 0
A59: Total Beiträge | B59: =v_sparbeitrag_zusatzplan+v_risikobeitrag_zusatzplan -> 0
A62: Total Basisplan und Zusatzplan | B62: ordentlich
A63: Total Beiträge | B63: =v_total_beitrag_netto+v_total_beitrag_zusatzplan -> 0
A64: Abeitnehmer Beiträge | B64: =v_beitraege_total/2 -> 0
A65: Total in % vers. Lohn | B65: =IF(v_dauer_koord_lohn=0,0,IF(bln_ok,v_beitraege_total/v_dauer_koord_lohn,0)) -> 0
A66: Arbeitnehmer in % vers. Lohn | B66: =v_beitraege_total_satz_vers_lohn/2 -> 0
A67: Total in % AHV-Lohn | B67: =IF(bln_ok,v_beitraege_total/f_ahv_lohn,0) -> 0
A68: Arbeitnehmer in % AHV-Lohn | B68: =v_beitraege_total_satz_ahv_lohn/2 -> 0

Sheet Texte (hidden)
A1: ID | B1: Deutsch | C1: Französisch | D1: Italienisch
A2: titel1 | B2: Berechnung der Beiträge an die berufliche Vorsorge | C2: Calcul des cotisations à la prévoyance professionnelle | D2: Calcolo dei contributi a favore della previdenza professionale
A3: Versichertenbestand per | B3: Versichertenbestand per | C3: Effectif d'assurés au
A4: Projektionszins AGH | B4: Projektionszins AGH | C4: Taux d'intérêt ADV projeté
A5: Arbeitgeber | B5: Arbeitgeber | C5: Employeur
A6: Provisorisches Leistungs- und Beitragsverzeichnis | B6: Provisorisches Leistungs- und Beitragsverzeichnis | C6: L'état provisoire des prestations et cotisations
A7: Total | B7: Total | C7: Totale
A8: Arbeit-nehmer | B8: Arbeit-nehmer | C8: salarié
A9: Beitrag | B9: Beitrag | C9: cotisation
A10: Sifo | B10: Sifo | C10: Sifo
A11: VK | B11: VK | C11: frais adm.
A12: Risiko | B12: Risiko | C12: risque
A13: Sparen | B13: Sparen | C13: épargne
A14: Inva-liden-rente | B14: Inva-liden-rente | C14: rente d'invali-dité
A15: Waisen-rente | B15: Waisen-rente | C15: rente d'orphe-lin
A16: Ehe-gatten-rente | B16: Ehe-gatten-rente | C16: rente de conjoint
A17: Kinder-rente | B17: Kinder-rente | C17: rente d'enfant
A18: Alters-rente | B18: Alters-rente | C18: rente de vieil-lesse
A19: mit Zins | B19: mit Zins | C19: avec intérêt
A20: ohne Zins | B20: ohne Zins | C20: sans intérêt
A21: davon BVG | B21: davon BVG | C21: dont LPP
A22: AGH total | B22: AGH total | C22: AV total
A23: vers. Zusatz | B23: vers. Zusatz | C23: assuré étendu
A24: vers. Basis | B24: vers. Basis | C24: assuré base
A25: gemeldet | B25: gemeldet | C25: déclaré
A26: Plan | B26: Plan | C26: Plan | D26: Piano
A27: Geb. Datum | B27: Geb. Datum | C27: date de naissance
A28: Name, Vorname | B28: Name, Vorname | C28: nom, prénom
A29: proj. AGH | B29: proj. AGH | C29: AV projeté
A30: letzter Abschluss | B30: letzter Abschluss | C30: dernier bilan AV
A31: Jahreslohn | B31: Jahreslohn | C31: salaire annuel
A32: bei Invalidität | B32: bei Invalidität | C32: en cas d'invalidité
A33: bei Tod | B33: bei Tod | C33: en cas de décès
A34: mit Rücktrittsalter f64/m65 | B34: mit Rücktrittsalter f64/m65 | C34: dans l'âge de la retraite f64/h65
A35: Beiträge | B35: Beiträge | C35: Cotisations
A36: Versicherte Leistungen | B36: Versicherte Leistungen | C36: Prestations assurées
A37: Versicherte Personen | B37: Versicherte Personen | C37: Personnes assurées
A38: Personalien | B38: Personalien | C38: Données personnelles
A39: Beitragsverzeichnis Pensionskasse | B39: Beitragsverzeichnis Pensionskasse | C39: Cotisations de la prévoyance professionnelle | D39: Contributi della previdenza professionale
A40: text1 | B40: Die Beitragsberechnung beruht auf den erfassten Daten. Massgebend ist schlussendlich die Beitragsrechnung der Agrisano Pencas, welche aufgrund der effektiv gemeldeten AHV-Löhne erstellt wird. | C40: Le calcul des cotisations se base sur les données saisies. C'est finalement le calcul des cotisations d'Agrisano Pencas, établi sur la base des salaires AVS effectivement déclarés, qui est déterminant. | D40: Il calcolo dei contributi si basa sui dati registrati. In definitiva, è decisiva la fattura dei contributi di Agrisano Pencas, che viene redatta sulla base dei salari AVS effettivamente dichiarati.
A41: text1a | B41: Sie beinhaltet zudem einen Zins für das nachschüssige Inkasso. | C41: Celle-ci comprend notamment un intérêt pour paiement à terme échu. | D41: Le supplemento per versamento posticipato è include.
A42: text2 | B42: Bei Fragen zur Beitragsrechnung wenden Sie sich bitte an die Agrisano Stiftung Globalversicherung (Tel. 056 461 78 55). Für die Berechnung der Beiträge von (teil-)invaliden Arbeitnehmenden nehmen Sie bitte Kontakt mit der Agrisano Pencas auf (Tel. 056 461 78 11). | C42: Pour toute question, veuillez prendre contact avec Fondation Agrisano, Aussurance globale (Tél. 056 461 78 55). Pour le calcul des cotisations d’employés invalides (partiels ou totaux), veuillez prendre contact avec Agrisano Pencas (Tél. 056 461 78 11). | D42: In caso di domande sull’avviso di premio si prega di rivolgersi alla Fondazione Agrisano, Assicurazione globale (tel. 056 461 78 55). Per il calcolo del premio di impiegati (parzialmente) invalidi si prega di prendere contatto con Agrisano Pencas (tel. 056 461 78 11).
A43: text3 | B43: Die Versicherungspflicht gilt nur für Anstellungsverhältnisse, die für mehr als 3 Monate dauern (gilt auch, wenn das Arbeitsverhältnis zwischenzeitlich maximal 3 Monate unterbrochen wird, die Gesamtbeschäftigungsdauer aber mehr als 92 Tage beträgt). | C43: L'obligation d'assurance s’applique uniquement aux rapports de travail qui ont été conclus pour plus de 3 mois (vaut également si la relation de travail est interrompue au maximum 3 mois, mais que la durée totale de l'emploi est de plus de 92 jours). | D43: L’obbligo di assicurazione trova applicazione soltanto per i rapporti d’impiego che sono stati contratti per una durata superiore a 3 mesi (applicabile anche se il rapporto di lavoro viene interrotto temporaneamente per un periodo massimo di 3 mesi, ma la durata complessiva dell’occupazione è comunque superiore a 92 giorni).
A44: text_druck | B44: Die Beitragsberechnung beruht auf den erfassten Daten. Massgebend ist schlussendlich die Beitragsrechnung der Agrisano Pencas, welche aufgrund der effektiv gemeldeten AHV-Löhne erstellt wird. Sie beinhaltet zudem einen Zins für das nachschüssige Inkasso. Bei Fragen zur Beitragsrechnung wenden Sie sich bitte an die Agrisano Stiftung Globalversicherung (Tel. 056 461 78 55). Für die Berechnung der Beiträge von (teil-)invaliden Arbeitnehmenden nehmen Sie bitte Kontakt mit der Agrisano Pencas auf. | C44: Le calcul des cotisations se base sur les données saisies. C'est finalement le calcul des cotisations d'Agrisano Pencas, établi sur la base des salaires AVS effectivement déclarés, qui est déterminant. Celle-ci comprend notamment un intérêt pour paiement à terme échu. Pour toute question, veuillez prendre contact avec Fondation Agrisano, Aussurance globale . Pour le calcul des cotisations d’employés invalides (partiels ou totaux), veuillez prendre contact avec Agrisano Pencas. | D44: Il calcolo dei contributi si basa sui dati registrati. In definitiva, è decisiva la fattura dei contributi di Agrisano Pencas, che viene redatta sulla base dei salari AVS effettivamente dichiarati. Le supplemento per versamento posticipato è include. In caso di domande sull’avviso di premio si prega di rivolgersi alla Fondazione Agrisano, Assicurazione globale (tel. 056 461 78 55). Per il calcolo del premio di impiegati (parzialmente) invalidi si prega di prendere contatto con Agrisano Pencas.
A45: text_druck_2 | B45: Die Beitragspflicht für unbefristete Anstellungsverhältnisse gilt ab dem 1. Tag. Bei befristeten Arbeitsverhältnissen gilt die Beitragspflicht wie folgt (Art. 3 Abs. 3 Vorsorgereglement 2025): | C45: L'obligation de payer des cotisations pour les contrats de travail à durée indéterminée s'applique dès le premier jour. Dans le cas de contrats de travail à durée déterminée, l'obligation de payer des cotisations s'applique comme suit (art. 3, al. 3 du règlement de prévoyance 2025): | D45: L'obbligo contributivo per i rapporti di lavoro a tempo indeterminato decorre dal primo giorno. Per i rapporti di lavoro a tempo determinato, l'obbligo contributivo si applica come segue (art. 3 cpv. 3 del rego-lamento di previdenza 2025):
A46: text_druck_2_1 | B46: Für Anstellungsverhältnisse von höchstens drei Monaten gilt keine Beitragspflicht. | C46: Pour les contrats de travail d'une durée maximale de trois mois, il n'y a pas d'obligation de cotiser. | D46: Per i rapporti di lavoro di durata massima di tre mesi non sussiste alcun obbligo contributivo.
A47: text_druck_2_2 | B47: Für Anstellungsverhältnisse, die für mehr als 3 Monate eingegangen werden, gilt die Beitragspflicht ab dem 1. Tag. | C47: Pour les contrats de travail conclus pour une durée supérieure à 3 mois, l'obligation de cotiser s'applique dès le premier jour. | D47: Per i rapporti di lavoro di durata superiore a tre mesi, l'obbligo contributivo decorre dal primo giorno.
A48: text_druck_2_3 | B48: Anstellungsverhältnisse, die ohne Unterbruch über die Dauer von drei Monaten hinaus verlängert werden, sind ab dem 1. Tag beitragspflichtig. | C48: Les contrats de travail qui sont prolongés sans interruption au-delà de trois mois sont soumis à cotisation dès le premier jour. | D48: I rapporti di lavoro che vengono prorogati senza interruzioni per un periodo superiore a tre mesi sono sogget-ti all'obbligo contributivo dal primo giorno.
A49: text_druck_2_4 | B49: Mehrere aufeinanderfolgende Anstellungen, die maximal für drei Monate unterbrochen werden, sind beitragspflichtig, wenn die Gesamtbeschäftigungsdauer mehr als 92 Tage beträgt. | C49: Plusieurs emplois consécutifs interrompus pendant trois mois au maximum sont soumis à cotisation si la du-rée totale de l'emploi est supérieure à 92 jours. | D49: I rapporti di lavoro consecutivi, interrotti per un massimo di tre mesi, sono soggetti all'obbligo contributivo se la durata complessiva dell'occupazione supera i 92 giorni.
A50: männlich | B50: männlich | C50: masculin | D50: Uomo
A51: weiblich | B51: weiblich | C51: feminin | D51: Donna
A52: Plan A | B52: Plan A | C52: Plan A | D52: Piano A
A53: Plan B | B53: Plan B | C53: Plan B | D53: Piano B
A54: Plan C | B54: Plan C | C54: Plan C | D54: Piano C
A55: Zusatzplan E | B55: Zusatzplan E | C55: Plan supplementaire E | D55: Piano supplementare E
A56: Zusatzplan F | B56: Zusatzplan F | C56: Plan supplementaire F | D56: Piano supplementare F
A57: Zusatzplan E+ | B57: Zusatzplan E+ | C57: Plan supplementaire E+ | D57: Piano supplementare E+
A58: Zusatzplan F+ | B58: Zusatzplan F+ | C58: Plan supplementaire F+ | D58: Piano supplementare F+
A59: Kein Zusatzplan | B59: Kein Zusatzplan | C59: Sans plan supplementaire | D59: Senza piano supplementare
A60: Mit Koordinationsabzug | B60: Mit Koordinationsabzug | C60: Avec déduction de coordination | D60: Con deduzione di coordinamento
A61: Ohne Koordinationabzug | B61: Ohne Koordinationabzug | C61: Sans déduction de coordination | D61: Senza deduzione di coordinamento
A62: Standardtarif | B62: Standardtarif | C62: Tarif standard | D62: Tariffa standard
A63: Verwaltungskostentarif 1 | B63: Verwaltungskostentarif 1 | C63: Tarif de frais administratifs 1 | D63: Tariffa dei costi di gestione 1
A64: Verwaltungskostentarif 2 | B64: Verwaltungskostentarif 2 | C64: Tarif de frais administratifs 2 | D64: Tariffa dei costi di gestione 2
A65: Verwaltungskostentarif 3 | B65: Verwaltungskostentarif 3 | C65: Tarif de frais administratifs 3 | D65: Tariffa dei costi di gestione 3
A66: Verwaltungskostentarif 4 | B66: Verwaltungskostentarif 4 | C66: Tarif de frais administratifs 4 | D66: Tariffa dei costi di gestione 4
A67: Verwaltungskostentarif 5 | B67: Verwaltungskostentarif 5 | C67: Tarif de frais administratifs 5 | D67: Tariffa dei costi di gestione 5
A68: Agrisano Pencas | B68: Agrisano Pencas | C68: Agrisano Pencas | D68: Agrisano Pencas
A69: Berufliche Vorsorge | B69: Berufliche Vorsorge | C69: Prévoyance professionnelle | D69: Previdenza professionale
A70: Versicherte Person | B70: Versicherte Person | C70: Personne assuré | D70: Persona assicurata
A71: Vorname / Name | B71: Vorname / Name | C71: Prénom / Nom | D71: Nome / Cognome
A72: AHV-Nr. | B72: AHV-Nr. | C72: N° AVS | D72: N. AVS
A73: Jahrgang | B73: Jahrgang | C73: Année de naissance | D73: Anno di nascita
A74: Geschlecht | B74: Geschlecht | C74: Sexe | D74: Sesso
A75: Versicherungslösung | B75: Versicherungslösung | C75: Solution d'assurance | D75: Soluzione assicurativa
A76: Plan | B76: Plan | C76: Plan | D76: Piano
A77: Basisplan | B77: Basisplan | C77: Plan de base | D77: Piano di base
A78: Koordinationsabzug | B78: Koordinationsabzug | C78: Déduction de coordination | D78: Deduzione di coordinamento
A79: Verwaltungskostentarif | B79: Verwaltungskostentarif | C79: Tarif des frais administratifs | D79: Tariffa die costi di gestione
A80: Zusatzplan | B80: Zusatzplan | C80: Plan supplementaire | D80: Piano supplementare
A81: Anstellung | B81: Anstellung | C81: L'emploi | D81: L'impiego
A82: Jahr | B82: Jahr | C82: Année | D82: Anno
A83: Anstellung von | B83: Anstellung von | C83: Emploi du | D83: Impiegato dal
A84: Anstellung bis | B84: Anstellung bis | C84: Emploi au | D84: Impiegato al
A85: Anst. Von | B85: Anst. von | C85: emploi du | D85: Impiegato dal
A86: Anst. Bis | B86: Anst. bis | C86: emploi au | D86: Impiegato al
A87: AHV-Lohn während der Anstellung | B87: AHV-Lohn während der Anstellung | C87: Salaire AVS perçu pour toute la durée | D87: Salario AVS percepito durante l’impiego
A88: AHV-Lohn | B88: AHV-Lohn | C88: Salaire AVS | D88: Salario AVS
A89: Auf Anstellungsdauer bezogen | B89: Auf Anstellungsdauer bezogen | C89: Pour la durée de l'emploi | D89: Per la durata dell'impiego
A90: Minimal koordinierter Lohn | B90: Minimal koordinierter Lohn | C90: Salaire coordoné minimal | D90: Salario minimo coordinato
A91: Versicherter Lohn | B91: Versicherter Lohn | C91: Salaire assuré | D91: Salario assicurato
A92: Tage | B92: Tage | C92: Jours | D92: Giorni
A93: hinweis1 | B93: Achtung, Sie haben einen reduzierten Verwaltungskostentarif ausgewählt. | C93: Attention, vous avez choisi un tarif réduit pour les frais administratifs. | D93: Attenzione, per i costi di gestione è stata selezionata una tariffa ridotta
A94: hinweis2 | B94: Dieser gilt nur nach Absprache mit der Agrisano Pencas. | C94: Celui-ci n'est valable q'après entente avec l'Agrisano Pencas. | D94: che trova applicazione soltanto previo accordo con Agrisano Pencas.
A95: Sparbeitrag | B95: Sparbeitrag | C95: Cotisation d'épargne | D95: Premio di risparmio
A96: Risikobeitrag | B96: Risikobeitrag | C96: Cotisation de risque | D96: Premio di rischio
A97: Verwaltungskosten | B97: Verwaltungskosten | C97: Frais administratifs | D97: Costi di gestione
A98: Beitrag Sicherheitsfonds | B98: Beitrag Sicherheitsfonds | C98: Fonds de garantie | D98: Contributo per il fondo di garanzia
A99: Total | B99: Total | C99: Totale | D99: Totale
A100: Total Beitrag | B100: Total Beitrag | C100: Cotisation totale | D100: Totale del premio
A101: Altersgutschrift | B101: Altersgutschrift | C101: Bonification de vieillesse | D101: Accredito di vecchiaia
A102: Beitrag | B102: Beitrag | C102: Cotisation | D102: Contributo
A103: Tabelle | B103: Tabelle | C103: Tableau | D103: Tabella
A104: netto | B104: netto | C104: nette | D104: netto
A105: in % vers. Lohn | B105: in % vers. Lohn | C105: % du salaire assuré | D105: % del salario assic.
A106: in % AHV-Lohn | B106: in % AHV-Lohn | C106: % du salaire AVS | D106: % del salario AVS
A107: CHF | B107: CHF | C107: CHF | D107: CHF
A108: Maximaler Anteil des Arbeitnehmers | B108: Maximaler Anteil des Arbeitnehmers | C108: Cotisation maximale de l'employé | D108: Contributo massimo del lavoratore
A109: Beitrag Arbeitnehmer | B109: Beitrag Arbeitnehmer | C109: Cotisation de l'employé | D109: Contributo del lavoratore
A110: davon Anteil Arbeitnehmer | B110: davon Anteil Arbeitnehmer | C110: Part du salarié | D110: Contributo del lavoratore
A111: Beitrag Arbeitgeber | B111: Beitrag Arbeitgeber | C111: Cotisation de l'employeur | D111: Contributo del datore di lavoro
A112: Total Beiträge Betrieb | B112: Total Beiträge Betrieb | C112: Cotisation totale de l'exploitation | D112: Totale die contributi della società
A113: Bestandesrechner Agrisano Pencas | B113: Bestandesrechner Agrisano Pencas | C113: Calculateur de prime | D113: Calcolo dei contributi del portafoglio
A114: Name Betrieb | B114: Name Betrieb | C114: Nom de | D114: Nome
A115: Adresse | B115: Adresse | C115: Adresse | D115: Indirizzo
A116: Sparbeitrag % | B116: Sparbeitrag % | C116: Cotisation d'épargne (%) | D116: Premi risparmio (%)
A117: Sparbeitrag | B117: Sparbeitrag | C117: Cotisation d'épargne | D117: Premi risparmio
A118: Risikobeitrag % | B118: Risikobeitrag % | C118: Cotisation de risque (%) | D118: Premi rischio (%)
A119: Risikobeitrag | B119: Risikobeitrag | C119: Cotisation de risque | D119: Premi rischio
A120: Verwaltungs-kosten | B120: Verwaltungs-kosten | C120: Frais de gestion | D120: Costi di gestione
A121: Sicherheits-fonds Beitrag | B121: Sicherheits-fonds Beitrag | C121: Fonds de sécurité | D121: Fondo di garanzia
A122: Beitragsverzeichnis Pensionskasse | B122: Beitragsverzeichnis Pensionskasse | C122: Cotisations de la prévoyance professionnelle | D122: Contributi della previdenza professionale
A123: Grundbeitrag Verwaltungskosten | B123: Grundbeitrag Verwaltungskosten | C123: Cotisation de base frais administratifs | D123: Contributo di base per le spese amministrative
A124: Verwaltungskosten Zusatzplan | B124: Verwaltungskosten Zusatzplan | C124: Frais de gestion plan supplementaire | D124: Costi di gestione piano supplementare
A125: M | B125: M | C125: M | D125: M
A126: W | B126: W | C126: F | D126: F
A127: fusszeile | B127: Laurstrasse 10 | 5201 Brugg | Telefon +41 (0)56 461 78 11 pencas@agrisano.ch | www.agrisano.ch | C127: Laurstrasse 10 | 5201 Brugg | Téléphone +41 (0)56 461 78 11 pencas@agrisano.ch | www.agrisano.ch | D127: Laurstrasse 10 | 5201 Brugg | Telefono +41 (0)56 461 78 11 pencas@agrisano.ch | www.agrisano.ch
A128: keine Reduktion | B128: keine Reduktion | C128: Pas de réduction | D128: Nessuna riduzione
A129: kein BVG | B129: kein BVG | C129: Pas de LPP | D129: Nessuna LPP
A130: Invaliditätsgrad | B130: Invaliditätsgrad | C130: Degré d'invalidité | D130: Grado di invalidità
A131: Reduktion Koordinationsabzug | B131: Reduktion Koordinationsabzug | C131: Réduction de la déduction de coordination | D131: Riduzione delle deduzione di coordinamento
A132: Aktiv | B132: Aktiv | C132: actif | D132: attivo
A133: Nicht aktiv | B133: Nicht aktiv | C133: Non actif | D133: non attivo
A134: hinweis_zins | B134: Der Zins für die Nachschüssigkeit wurde nicht berücksichtigt. | C134: Les intérêts pour le paiement à terme échu n'a pas été pris en compte. | D134: Le supplemento per versamento posticipato non è considerato.
A135: hinweis_iv | B135: Der IV - Beitragsrechner ist aktiv! Bitte entsprechendes Tabellenblatt verwenden. | C135: Le calculateur de cotisation AI est actif! Veuillez utiliser la feuille Excel correspondante. | D135: Il calcolatore dei contributi IV è attivo! Utilizzare il foglio di calcolo corrispondente.
A136: titel1_iv | B136: Berechnung der Beiträge an die berufliche Vorsorge - Bei Invalidität | C136: Calcul des cotisations à la prévoyance professionnelle - en cas d'invalidité | D136: Calcolo dei contributi a favore della previdenza pro-fessionale
A137: Hinweise | B137: Hinweise | C137: Indication | D137: Indicazione
A138: IV-Rechner | B138: IV-Rechner | C138: Calculateur AI | D138: Calcolatore AI
A139: IV-Rechner aktiv? | B139: IV-Rechner aktiv? | C139: Calculateur AI actif? | D139: Calcolatore AI attivo?
A140: hinweis_druck | B140: Zum Drucken das Tabellenblatt "Druck" verwenden | C140: Pour imprimer le tableau utiliser le "Imprimer" | D140: Per stampare la tabella utilizzare "Stampa"
A141: hinweis_erf_bestand | B141: Hinweis: Um invalide Personen zu berechnen, bitte den Einzelrechner verwenden. | C141: Indication : Pour le calcul de personnes invalides, veuillez utiliser le calculateur individuel. | D141: Nota: per il calcolo degli invalidi, utilizzare il calcolatore individuale.
A142: Anstellungsdauer in Tagen | B142: Anstellungsdauer in Tagen | C142: Durée de l'emploi en jours | D142: Durata dell'impiego in giorni
A143: Jahrgang_be | B143: Jahr- gang | C143: Ann. de naiss. | D143: Anno di nascita
A144: Sparbeitrag_proz_de | B144: Spar- beitrag (%) | C144: Cotisatio d'épargne (%) | D144: Premi risparmio (%)
A145: Verwaltungskosten_be | B145: Verwaltungs- kosten | C145: Frais administratifs | D145: Costi di gestione
A146: Sicherheits-fonds | B146: Sicherheits-fonds | C146: Fonds de sécurité | D146: Fondo di garanzia
A147: Beitrag Arbeitgeber | B147: Beitrag Arbeitgeber | C147: Cotisation de l'employeur | D147: Contributo del datore di lavoro
A148: Risiko-beitrag | B148: Risiko- beitrag | C148: Cotisation de risque | D148: Premio di rischio
A149: Risiko-beitrag % | B149: Risiko- beitrag % | C149: Cotisation de risque (%) | D149: Premi rischio (%)
A150: Total-Beitrag | B150: Total Beitrag | C150: Cotisation totale | D150: Totale del premio
A151: hinweis_CHF | B151: Alle Angaben in CHF. | C151: Toutes les données sont exprimées en CHF. | D151: Tutti i dati sono espressi in CHF.
A152: Total Leistungen und Beiträge | B152: Total Leistungen und Beiträge | C152: Total des prestations et des cotisations
A153: text1_bele | B153: =B154&" "&B155&" "&B156 -> Die Werte im Verzeichnis sind in CHF angegeben und beruhen auf den aktuell vorliegenden Daten zu den Mitarbeiter- und Lohnverhältnissen des Jahres , wobei für die Erstellung des Verzeichnisses von Ganzjahresarbeitsverhältnissen ausgegangen wird. Der Zins für die Nachschüssigkeit von aktuell 1.50% wurde dabei nicht berücksichtigt. Massgebend ist schlussendlich die Rechnung der Agrisano Pencas, welche rückwirkend aufgrund der effektiv gemeldeten AHV-Löhne erstellt wird. | C153: =C154&" "&C155&" "&C156 -> Les valeurs indiquées dans l'état sont exprimées en CHF et se basent sur les données actuellement disponibles concernant les rapports de travail et de salaire de l'année . Pour l'établissement de l'état, on est parti du principe que les contrats de travail étaient conclus à l'année. L'intérêt à terme échu, actuellement de 1.50%, n'a pas été pris en compte. La facture d'Agrisano Pencas, établie rétroactivement sur la base des salaires AVS effectivement déclarés, est finalement déterminante.
B154: ="Die Werte im Verzeichnis sind in CHF angegeben und beruhen auf den aktuell vorliegenden Daten zu den Mitarbeiter- und Lohnverhältnissen des Jahres "&f_jahr_massgebend&"," -> Die Werte im Verzeichnis sind in CHF angegeben und beruhen auf den aktuell vorliegenden Daten zu den Mitarbeiter- und Lohnverhältnissen des Jahres , | C154: ="Les valeurs indiquées dans l'état sont exprimées en CHF et se basent sur les données actuellement disponibles concernant les rapports de travail et de salaire de l'année "&f_jahr_massgebend&"." -> Les valeurs indiquées dans l'état sont exprimées en CHF et se basent sur les données actuellement disponibles concernant les rapports de travail et de salaire de l'année .
B155: wobei für die Erstellung des Verzeichnisses von Ganzjahresarbeitsverhältnissen ausgegangen wird. | C155: ="Pour l'établissement de l'état, on est parti du principe que les contrats de travail étaient conclus à l'année. L'intérêt à terme échu, actuellement de "&TEXT(p_zins_nachschuessig,"0.00%")&", n'a pas été pris en compte." -> Pour l'établissement de l'état, on est parti du principe que les contrats de travail étaient conclus à l'année. L'intérêt à terme échu, actuellement de 1.50%, n'a pas été pris en compte.
B156: ="Der Zins für die Nachschüssigkeit von aktuell "&TEXT(p_zins_nachschuessig,"0.00%")&" wurde dabei nicht berücksichtigt. Massgebend ist schlussendlich die Rechnung der Agrisano Pencas, welche rückwirkend aufgrund der effektiv gemeldeten AHV-Löhne erstellt wird." -> Der Zins für die Nachschüssigkeit von aktuell 1.50% wurde dabei nicht berücksichtigt. Massgebend ist schlussendlich die Rechnung der Agrisano Pencas, welche rückwirkend aufgrund der effektiv gemeldeten AHV-Löhne erstellt wird. | C156: La facture d'Agrisano Pencas, établie rétroactivement sur la base des salaires AVS effectivement déclarés, est finalement déterminante.
A157: Firma | B157: Firma | C157: Société
A158: Erstellt von: | B158: Erstellt von: | C158: Créé par :
A159: Vertragsnummer | B159: Vertragsnummer | C159: N° de contrat
A160: Beschäftigungsgrad | B160: Beschäftigungsgrad | C160: Taux d'occupation | D160: Grado di occupazione
A161: hinweis3 | B161: Achtung, Sie haben den Koordinationsabzug proportional zum Beschäftigungsgrad gewählt. | C161: Attention, vous avez choisi la déduction de coordination proportionnelle au taux d'occupation. | D161: Attenzione: avete selezionato la deduzione di coordinamento in proporzione al grado di occupazione.
A162: text_weiterversicherung | B162: Die Beitragsrechnung erhöht sich um den Zuschlag für die nachschüssige Zahlung.
A163: Risikobeitrag und Verwaltungskosten | B163: Risikobeitrag und Verwaltungskosten | C163: Cotisation de risque et frais administratifs
A164: Basis- und Zusatzplan | B164: Basis- und Zusatzplan
A165: Jahrgang (JJJJ) | B165: Jahrgang (JJJJ) | C165: Année de naissance (AAAA) | D165: Anno di nascita (AAAA)
A166: hinweis_ref_jahr | B166: Für die bei der Agrisano Pencas versicherten Personen besteht die Beitragspflicht bis zum Erreichen des Referenzalters. Das Referenzalter wird am Monatsersten nach Vollendung des 65. Altersjahres erreicht. Für eine korrekte Berechnung der Beiträge im Jahr des Erreichens des Referenzalters ist bei «Anstellung bis» der letzte Tag des Monats einzusetzen, in dem die versicherte Person das Referenzalter erreicht. | C166: Les personnes assurées auprès d'Agrisano Pencas sont tenues de cotiser jusqu'à ce qu'elles atteignent l'âge de référence. L'âge de référence est atteint le premier jour du mois suivant le 65e anniversaire. Pour un calcul correct des cotisations l'année où l'âge de référence est atteint, il faut indiquer comme «date de fin d'emploi» le dernier jour du mois au cours duquel la personne assurée atteint l'âge de référence. | D166: Per le persone assicurate presso Agrisano Pencas, l'obbligo contributivo sussiste fino al raggiungimento dell'età di riferimento. L'età di riferimento viene raggiunta il primo giorno del mese successivo al compimento del 65° anno di età. Per un corretto calcolo dei contributi nell'anno in cui si raggiunge l'età di riferimento, l'ultimo giorno del mese in cui la persona assicurata raggiunge l'età di riferimento deve essere inserita in «Assunzione fino a».
A167: Hinweis | B167: Hinweis | C167: Remarque | D167: Nota
A168: hinweis_ref_jahr_zusatz | B168: Für Frauen mit den Jahrgängen 1961 bis 1963 gelten für das Erreichen des Referenzalters die Übergangsbestimmungen gemäss Anhang 4 des Vorsorgereglements der Agrisano Pencas, gültig ab 01.01.2025. | C168: Pour les femmes nées entre 1961 et 1963, les dispositions transitoires de l'annexe 4 du règlement de prévoyance d'Agrisano Pencas, valables à partir du 1 janvier 2025, s'appliquent pour atteindre l'âge de référence. | D168: Per le donne nate tra il 1961 e il 1963, le disposizioni transitorie di cui all'allegato 4 del regolamento di previdenza di Agrisano Pencas, valido dal 01.01.2025, si applicano per il raggiungimento dell'età di riferimento.
A169: Gemäss Beschäftigungsgrad | B169: Gemäss Beschäftigungsgrad | C169: Selon le taux d'occupation | D169: In base al grado di occupazione
A170: BG | B170: BG | C170: TO | D170: GO
A171: IV-Grad / Eintritt AUF | B171: IV-Grad / Eintritt AUF | C171: Degré d'invalidité / Début IT | D171: Grado IV / Entrata IL
A172: vor 2022 | B172: vor 2022 | C172: avant 2022 | D172: prima del 2022
A173: nach 2022 | B173: nach 2022 | C173: après 2022 | D173: dopo il 2022
A174: Arbeitnehmer mit IV | B174: Arbeitnehmer mit IV | C174: Employé(e) avec AI | D174: Lavoratori con IV

Sheet Version (hidden)
A2: Version | B2: Blatt/Modul | C2: Anpassung
A3: 1.8.1 | B3: Import_Daten | C3: Wenn SN leer, dann leer, nicht 0
B4: Import_Daten_Zusatzplan | C4: Wenn SN = leer, Zuweisung über Name
B5: Output_L&B | C5: Seitenansicht/Druck. Alle Spalten auf einer Seite
A6: 1.8.2 | C6: Zusatzplan ohne Ehegatten- und Waisenrente
A7: 1.8.3 | C7: Vers. Lohn wird korrekt übernommen
A8: 1.8.6 | C8: Druckbereicheinstellungen gelöst (ohne Namen ausblenden)
A9: 1.9.0 | C9: Einbau TZ KoA
A10: 1.9.1 | C10: ÜO-Lohn korrekt berechnet
A11: 1.12.1 | C11: Datumsformat korrigiert
A12: 1.13.1 | B12: Hilfstabelle | C12: Neuer Text betr. Referenzjahr
A13: 1.13.2 | B13: Hilfstabelle | C13: Überprüfung neuer Text Referenzjahr
A14: 1.13.3 | C14: Import Verzeichnisse mit BG/ohne BG
A15: 1.13.4 | C15: Anpassung Output
A16: 1.13.5 | C16: BG auf Output_B übertragen
A17: 1.16.1 | C17: Diverse Anpassungen Hauptblatt und Berechnungen
A18: 1.17.1 | C18: Korrekturen gem. Rückmeldung Dez 1, 2025

Sheet Fehler (hidden)
A1: Fehlerprüfung
A3: Grundlagen Basisplan
A4: Jahrgang erfasst | B4: =f_jahrgang>0 -> FALSE
A5: Geschlecht erfasst | B5: =i_geschlecht>0 -> FALSE
A6: Alter min erreicht | B6: =p_jahr_valid-f_jahrgang>=p_min_alter_bvg -> TRUE
A7: Unter max. Alter | B7: =p_jahr_valid-f_jahrgang<=IF(i_geschlecht=1,p_pens_alter_m,p_pens_alter_w) -> FALSE
A8: Basisplan erfasst | B8: =f_basisplan<>"" -> TRUE
A9: Koa erfasst | B9: =f_koord_abzug<>"" -> TRUE
A10: Vk-Tarif erfasst | B10: =f_vk_tarif<>"" -> TRUE
A11: Tage vorhanden | B11: =v_tage>0 -> TRUE
A12: Lohn vorhanden | B12: =f_ahv_lohn>0 -> FALSE
A13: TZ Koa und BG | B13: =IF(i_koordabz=3,IF(OR(f_besch_grad="",f_besch_grad=0),FALSE,TRUE),TRUE) -> TRUE
A14: Grundlagen 1 erfüllt | B14: =AND(B4:B13) -> FALSE
A16: Über Eintrittsschwelle | B16: =f_ahv_lohn_auf_jahr>p_min_lohn_bvg -> FALSE
A17: Grundlagen 2 erfüllt | B17: =AND(B14,B16) -> FALSE
A19: Lohn > max. AHV Lohn | B19: =f_ahv_lohn_auf_jahr>p_max_ahv_lohn -> FALSE
A21: Grundlagen Zusatzplan
A22: Zusatzplan vorhanden | B22: =i_zusatzplan>1 -> FALSE

Sheet Tarife (hidden)
B1: Tarife und Parameter
B3: Parameter | F3: Verwaltungskostentarife | I3: Rabatt | J3: Maximalsatz | L3: IV-Berechnung
B4: Gültiges Jahr | D4: 2026 | F4: Standardtarif | I4: 0 | J4: 360 | L4: IV?
B5: Max. AHV-Jahresrente | D5: 30240 | F5: Verwaltungskostentarif 1 | I5: 0.001 | J5: 336 | L5: Invaliditätsgrad | O5: 0.45
B6: ="Zins im Jahr "&p_jahr_valid -> Zins im Jahr 2026 | D6: 0.0125 | F6: Verwaltungskostentarif 2 | I6: 0.002 | J6: 312 | L6: Eintritt AUF
B7: Minimales Alter | D7: 18 | F7: Verwaltungskostentarif 3 | I7: 0.003 | J7: 288 | L7: Eff. IV-Faktor | O7: =v_eff_iv_faktor -> 1
B8: Pensionsalter M | D8: 65 | F8: Verwaltungskostentarif 4 | I8: 0.004 | J8: 264 | L8: Eff. Reduktion | O8: =v_eff_reduktion -> keine Reduktion
B9: Pensionsalter W | D9: 65 | F9: Verwaltungskostentarif 5 | I9: 0.005 | J9: 240
B10: Grundbeitrag Verwaltungskosten | D10: 95
B13: Gesamtprämiensatz | C13: Plan A | E13: Plan B | G13: Plan C | I13: Weitere | L13: Blätter ein-/ausblenden
B14: Jahrgang (bis…) | C14: Männer | D14: Frauen | E14: Männer | F14: Frauen | G14: Männer | H14: Frauen | I14: SiFo | J14: VK
B15: =p_jahr_valid-18 -> 2008 | C15: 0.0112 | D15: 0.0101 | E15: 0.0115 | F15: 0.0103 | G15: 0.0133 | H15: 0.0112 | I15: 0 | J15: 0.008
B16: =B15-7 -> 2001 | C16: 0.09124 | D16: 0.09344 | E16: 0.09224 | F16: 0.09484 | G16: 0.09634 | H16: 0.09844 | I16: 0.0011 | J16: 0.014
B17: =B16-10 -> 1991 | C17: 0.12867 | D17: 0.13367 | E17: 0.13087 | F17: 0.13667 | G17: 0.13937 | H17: 0.14257 | I17: 0.0011 | J17: 0.014
B18: =B17-10 -> 1981 | C18: 0.18565 | D18: 0.18515 | E18: 0.19255 | F18: 0.19125 | G18: 0.20725 | H18: 0.20525 | I18: 0.0011 | J18: 0.014
B19: =B18-10 -> 1971 | C19: 0.21758 | D19: 0.21448 | E19: 0.22798 | F19: 0.22318 | G19: 0.24558 | H19: 0.23728 | I19: 0.0011 | J19: 0.014
B20: =B19-5 -> 1966 | C20: 0.20958 | D20: 0.20478 | E20: 0.21908 | F20: 0.21158 | G20: 0.23048 | H20: 0.22088 | I20: 0.0011 | J20: 0.014
B23: Spar- und Risikosätze | C23: Sparprämie | I23: Risikoprämie
B24: Alter | C24: Männer | D24: Frauen | E24: Plan E | F24: Plan F | G24: Plan E+ | H24: Plan F+ | I24: Plan E+ | J24: Plan F+
B25: 18 | C25: 0 | D25: 0 | E25: 0 | F25: 0 | G25: 0 | H25: 0 | I25: 0 | J25: 0
B26: 25 | C26: 0.07 | D26: 0.07 | E26: 0.08 | F26: 0.13 | G26: 0.08 | H26: 0.13 | I26: 0.001 | J26: 0.0027
B27: 35 | C27: 0.1 | D27: 0.1 | E27: 0.05 | F27: 0.1 | G27: 0.05 | H27: 0.1 | I27: 0.001 | J27: 0.0027
B28: 41 | C28: 0.1 | D28: 0.1 | E28: 0.1 | F28: 0.15 | G28: 0.1 | H28: 0.15 | I28: 0.001 | J28: 0.0027
B29: 45 | C29: 0.15 | D29: 0.15 | E29: 0.05 | F29: 0.1 | G29: 0.05 | H29: 0.1 | I29: 0.001 | J29: 0.0027
B30: 55 | C30: 0.18 | D30: 0.18 | E30: 0.02 | F30: 0.07 | G30: 0.02 | H30: 0.07 | I30: 0.001 | J30: 0.0027
B31: 65 | C31: 0.18 | D31: 0.18 | E31: 0.02 | F31: 0.07 | G31: 0.02 | H31: 0.07 | I31: 0.001 | J31: 0.0027

Sheet Weiterversicherung (hidden)
B5: =Hauptblatt!B5 -> v1.19.1
B7: =VLOOKUP("titel1",m_texte,v_sprachcode,FALSE)&" "&p_jahr_valid -> Berechnung der Beiträge an die berufliche Vorsorge 2026
B10: =VLOOKUP("Versicherte Person",m_texte,v_sprachcode,FALSE) -> Versicherte Person | M10: =VLOOKUP("Anstellung",m_texte,v_sprachcode,FALSE) -> Anstellung
B12: =VLOOKUP("Vorname / Name",m_texte,v_sprachcode,FALSE) -> Vorname / Name | G12: =IF(f_vorname_name="","",f_vorname_name) ->  | M12: =VLOOKUP("Jahr",m_texte,v_sprachcode,FALSE) -> Jahr | R12: =p_jahr_valid -> 2026
B13: =VLOOKUP("AHV-Nr. ",m_texte,v_sprachcode,FALSE) -> AHV-Nr. | G13: =IF(f_ahv_nr="","",f_ahv_nr) ->  | M13: =VLOOKUP("Anstellung von",m_texte,v_sprachcode,FALSE) -> Anstellung von | R13: =f_anstellung_von -> 00:00:00
B14: =VLOOKUP("Jahrgang",m_texte,v_sprachcode,FALSE) -> Jahrgang | G14: =IF(f_jahrgang="","",f_jahrgang) -> 0 | M14: =VLOOKUP("Anstellung bis",m_texte,v_sprachcode,FALSE) -> Anstellung bis | R14: =f_anstellung_bis -> 00:00:00
B15: =VLOOKUP("Geschlecht",m_texte,v_sprachcode,FALSE) -> Geschlecht | G15: =IF(f_geschlecht="","",f_geschlecht) -> 0 | M15: =VLOOKUP("Anstellungsdauer in Tagen",m_texte,v_sprachcode,FALSE) -> Anstellungsdauer in Tagen | R15: =v_tage -> 1
M16: =VLOOKUP("AHV-Lohn",m_texte,v_sprachcode,FALSE) -> AHV-Lohn | R16: =f_ahv_lohn -> 0
B18: =VLOOKUP("Versicherungslösung",m_texte,v_sprachcode,FALSE) -> Versicherungslösung | M18: =VLOOKUP("Versicherter Lohn",m_texte,v_sprachcode,FALSE) -> Versicherter Lohn
B20: =VLOOKUP("Plan",m_texte,v_sprachcode,FALSE) -> Plan | G20: =IF(f_basisplan="","",f_basisplan) -> Plan A | M20: =VLOOKUP("beschäftigungsgrad",m_texte,v_sprachcode,FALSE) -> Beschäftigungsgrad | R20: =f_besch_grad -> 1
B21: =VLOOKUP("Koordinationsabzug",m_texte,v_sprachcode,FALSE) -> Koordinationsabzug | G21: =IF(f_koord_abzug="","",f_koord_abzug) -> Mit Koordinationsabzug | M21: =VLOOKUP("Minimal koordinierter Lohn",m_texte,v_sprachcode,FALSE) -> Minimal koordinierter Lohn | R21: =IF(f_anstellung_von="",0,v_dauer_min_koord_lohn) -> 10
B22: =VLOOKUP("Verwaltungskostentarif",m_texte,v_sprachcode,FALSE) -> Verwaltungskostentarif | G22: =IF(f_vk_tarif="","",f_vk_tarif) -> Standardtarif | M22: =VLOOKUP("Koordinationsabzug",m_texte,v_sprachcode,FALSE) -> Koordinationsabzug | R22: =v_dauer_koord_abzug -> 72.5
B23: =VLOOKUP("Zusatzplan",m_texte,v_sprachcode,FALSE) -> Zusatzplan | G23: =IF(f_zusatzplan="","",f_zusatzplan) -> Kein Zusatzplan | M23: =VLOOKUP("Versicherter Lohn",m_texte,v_sprachcode,FALSE) -> Versicherter Lohn | R23: =v_dauer_koord_lohn -> 0
B25: =VLOOKUP("Basisplan",m_texte,v_sprachcode,FALSE)&" "&f_basisplan -> Basisplan Plan A
B27: =VLOOKUP("Sparbeitrag",m_texte,v_sprachcode,FALSE) -> Sparbeitrag | M27: =v_satz_sparpraemie -> 0 | Q27: CHF | R27: =v_sparbeitrag -> 0
B28: =VLOOKUP("Risikobeitrag und Verwaltungskosten",m_texte,v_sprachcode,FALSE) -> Risikobeitrag und Verwaltungskosten | M28: =v_satz_risikopraemie+v_dauer_vk_effektiv_satz -> 0 | Q28: CHF | R28: =v_risikobeitrag+v_dauer_vk_effektiv -> 0
B29: =VLOOKUP("Total Beitrag",m_texte,v_sprachcode,FALSE)&" "&VLOOKUP("Basisplan",m_texte,v_sprachcode,FALSE) -> Total Beitrag Basisplan | Q29: CHF | R29: =SUM(R27:T28) -> 0
B31: =IF(i_zusatzplan>0,INDEX(l_zusatzplaene,i_zusatzplan,1),VLOOKUP("Kein Zusatzplan",m_texte,v_sprachcode,FALSE)) -> Kein Zusatzplan
B33: =IF(i_zusatzplan<2,"",VLOOKUP("Sparbeitrag",m_texte,v_sprachcode,FALSE)) ->  | M33: =IF(i_zusatzplan<2,"",v_satz_sparbeitrag_zusatzplan) ->  | Q33: CHF | R33: =v_sparbeitrag_zusatzplan -> 0
B34: =IF(i_zusatzplan<4,"",VLOOKUP("Risikobeitrag",m_texte,v_sprachcode,FALSE)) ->  | M34: =IF(i_zusatzplan<4,"",v_satz_risikobeitrag_zusatzplan) ->  | Q34: CHF | R34: =v_risikobeitrag_zusatzplan -> 0
B35: =VLOOKUP("Total Beitrag",m_texte,v_sprachcode,FALSE)&" "&VLOOKUP("Zusatzplan",m_texte,v_sprachcode,FALSE) -> Total Beitrag Zusatzplan | Q35: CHF | R35: =SUM(R31:T34) -> 0
B37: =VLOOKUP("Total",m_texte,v_sprachcode,FALSE) -> Total
B39: =VLOOKUP("Beitrag",m_texte,v_sprachcode,FALSE)&" "&VLOOKUP("Basisplan",m_texte,v_sprachcode,FALSE) -> Beitrag Basisplan | Q39: CHF | R39: =R29 -> 0
B40: =VLOOKUP("Beitrag",m_texte,v_sprachcode,FALSE)&" "&VLOOKUP("Zusatzplan",m_texte,v_sprachcode,FALSE) -> Beitrag Zusatzplan | Q40: CHF | R40: =R35 -> 0
B41: =VLOOKUP("Total Beitrag",m_texte,v_sprachcode,FALSE) -> Total Beitrag | Q41: CHF | R41: =SUM(R39:T40) -> 0
B44: =VLOOKUP("text_weiterversicherung",m_texte,v_sprachcode,FALSE) -> Die Beitragsrechnung erhöht sich um den Zuschlag für die nachschüssige Zahlung.
I55: =VLOOKUP("fusszeile",m_texte,v_sprachcode,FALSE) -> Laurstrasse 10 | 5201 Brugg | Telefon +41 (0)56 461 78 11 pencas@agrisano.ch | www.agrisano.ch

Sheet Input (hidden)
B2: Bestandesrechner - Datenimport
B4: Beitragsverzeichnis | J4: Leistungs- und Beitragsverzeichnis | O4: Allgemeine Einstellungen
O6: Name Betrieb
O7: SN
B8: Plan | D8: Plan A | J8: Koordinationsabzug | L8: Mit Koordinationsabzug | O8: Ersteller
B9: Koordinationsabzug | D9: Gemäss Beschäftigungsgrad | J9: Verwaltungskostentarif | L9: Standardtarif | O9: Sprache
B10: Verwaltungskostentarif | D10: Standardtarif | J10: Beitrag Arbeitnehmer (in %) | L10: 0.5 | O10: Projektionszins AGH | Q10: 0.01
B11: Zusatzplan | D11: Zusatzplan F+ | O11: Zins Nachschüssigkeit | Q11: 0.015
B12: Beitrag Arbeitnehmer (in %) | D12: 0.5 | O12: Massgebendes Jahr
B17: Versicherte Person | L17: Hauptplan | Q17: Pension | U17: Tod | W17: IV-Rente | Y17: Zusatzplan
B18: Vers. Nr. | C18: Versicherte Person | D18: Sex | E18: Geburtsdatum | F18: Alter | G18: Anstellung von | H18: Anstellung bis | I18: BG | J18: AHV-Lohn | K18: Dauer | L18: Plan | M18: vers. Lohn Basis | N18: vers. Lohn Zusatz | O18: letzter Abschluss AGH Total | P18: letzter Abschluss davon BVG | Q18: proj. AGH ohne Zins | R18: proj. AGH mit Zins | S18: Alters- rente | T18: Kinder- rente | U18: Ehegatten- rente | V18: Waisen- rente | W18: IV-Rente | X18: Kinder- rente | Y18: Zusatzplan | Z18: vers. Lohn | AA18: letzter Abschluss AGH Total | AB18: proj. AGH mit Zins | AC18: Alters- rente | AD18: Ehegatten- rente | AE18: Waisen- rente

Sheet Output_B (hidden)
M1: Agrisano Pencas
M2: =VLOOKUP("Berufliche Vorsorge",m_texte,v_sprachcode,FALSE) -> Berufliche Vorsorge
A6: =VLOOKUP("Beitragsverzeichnis Pensionskasse",m_texte,v_sprachcode,FALSE)&" "&p_jahr_valid -> Beitragsverzeichnis Pensionskasse 2026 | P6: =TODAY() -> 2026-02-09
A8: =VLOOKUP("Firma",m_texte,v_sprachcode,FALSE)&":" -> Firma:
A9: =VLOOKUP("Vertragsnummer",m_texte,v_sprachcode,FALSE)&":" -> Vertragsnummer:
O11: =VLOOKUP("Beitrag Arbeitgeber",m_texte,v_sprachcode,FALSE) -> Beitrag Arbeitgeber | P11: =f_anteil_an_be -> 0.5
A12: SN | B12: =VLOOKUP("Vorname / Name",m_texte,v_sprachcode,FALSE) -> Vorname / Name | C12: Sex | D12: =VLOOKUP("Geb. Datum",m_texte,v_sprachcode,FALSE) -> Geb. Datum | E12: =VLOOKUP("Plan",m_texte,v_sprachcode,FALSE) -> Plan | F12: =VLOOKUP("BG",m_texte,v_sprachcode,FALSE) -> BG | G12: =VLOOKUP("AHV-Lohn",m_texte,v_sprachcode,FALSE) -> AHV-Lohn | H12: =VLOOKUP("Versicherter Lohn",m_texte,v_sprachcode,FALSE) -> Versicherter Lohn | I12: =VLOOKUP("Sparbeitrag_proz_de",m_texte,v_sprachcode,FALSE) -> Spar- beitrag (%) | J12: =VLOOKUP("Sparbeitrag",m_texte,v_sprachcode,FALSE) -> Sparbeitrag | K12: =VLOOKUP("Risiko-beitrag %",m_texte,v_sprachcode,FALSE) -> Risiko- beitrag % | L12: =VLOOKUP("Risiko-beitrag",m_texte,v_sprachcode,FALSE) -> Risiko- beitrag | M12: =VLOOKUP("Verwaltungskosten_be",m_texte,v_sprachcode,FALSE) -> Verwaltungs- kosten | N12: =VLOOKUP("Sicherheits-fonds",m_texte,v_sprachcode,FALSE) -> Sicherheits-fonds | O12: =VLOOKUP("Total-Beitrag",m_texte,v_sprachcode,FALSE) -> Total Beitrag | P12: =VLOOKUP("davon Anteil Arbeitnehmer",m_texte,v_sprachcode,FALSE) -> davon Anteil Arbeitnehmer

Sheet Output_L&B (hidden)
A6: =VLOOKUP("Provisorisches Leistungs- und Beitragsverzeichnis",m_texte,v_sprachcode,FALSE)&" "&p_jahr_valid -> Provisorisches Leistungs- und Beitragsverzeichnis 2026 | Z6: =TODAY() -> 2026-02-09
A8: =VLOOKUP("Arbeitgeber",m_texte,v_sprachcode,FALSE)&":" -> Arbeitgeber:
A9: =VLOOKUP("Vertragsnummer",m_texte,v_sprachcode,FALSE)&":" -> Vertragsnummer:
A10: =VLOOKUP("Projektionszins AGH",m_texte,v_sprachcode,FALSE)&":" -> Projektionszins AGH: | D10: =p_projektionszins_agh -> 0.01
A11: =VLOOKUP("Versichertenbestand per",m_texte,v_sprachcode,FALSE)&":" -> Versichertenbestand per: | D11: ="1.1."&f_jahr_massgebend+1 -> 1.1.1
Z13: =VLOOKUP("Beitrag Arbeitgeber",m_texte,v_sprachcode,FALSE) -> Beitrag Arbeitgeber | AA13: =f_anteil_an_bele -> 0.5
A14: =VLOOKUP("Versicherte Personen",m_texte,v_sprachcode,FALSE) -> Versicherte Personen | L14: =VLOOKUP("Versicherte Leistungen",m_texte,v_sprachcode,FALSE) -> Versicherte Leistungen | T14: =VLOOKUP("Beiträge",m_texte,v_sprachcode,FALSE) -> Beiträge
L15: =VLOOKUP("mit Rücktrittsalter f64/m65",m_texte,v_sprachcode,FALSE) -> mit Rücktrittsalter f64/m65 | P15: =VLOOKUP("bei Tod",m_texte,v_sprachcode,FALSE) -> bei Tod | R15: =VLOOKUP("bei Invalidität",m_texte,v_sprachcode,FALSE) -> bei Invalidität
A16: =VLOOKUP("Personalien",m_texte,v_sprachcode,FALSE) -> Personalien | E16: =VLOOKUP("Plan",m_texte,v_sprachcode,FALSE) -> Plan | F16: =VLOOKUP("BG",m_texte,v_sprachcode,FALSE) -> BG | G16: =VLOOKUP("Jahreslohn",m_texte,v_sprachcode,FALSE) -> Jahreslohn | J16: =VLOOKUP("letzter Abschluss",m_texte,v_sprachcode,FALSE) -> letzter Abschluss | L16: =VLOOKUP("proj. AGH",m_texte,v_sprachcode,FALSE) -> proj. AGH | N16: =VLOOKUP("Alters-rente",m_texte,v_sprachcode,FALSE) -> Alters-rente | O16: =VLOOKUP("Kinder-rente",m_texte,v_sprachcode,FALSE) -> Kinder-rente | P16: =VLOOKUP("Ehe-gatten-rente ",m_texte,v_sprachcode,FALSE) -> Ehe-gatten-rente | Q16: =VLOOKUP("Waisen-rente ",m_texte,v_sprachcode,FALSE) -> Waisen-rente | R16: =VLOOKUP("Inva-liden-rente",m_texte,v_sprachcode,FALSE) -> Inva-liden-rente | S16: =VLOOKUP("Kinder-rente",m_texte,v_sprachcode,FALSE) -> Kinder-rente | T16: =VLOOKUP("Sparen",m_texte,v_sprachcode,FALSE) -> Sparen | V16: =VLOOKUP("Risiko",m_texte,v_sprachcode,FALSE) -> Risiko | X16: =VLOOKUP("VK",m_texte,v_sprachcode,FALSE) -> VK | Y16: =VLOOKUP("Sifo",m_texte,v_sprachcode,FALSE) -> Sifo | Z16: =VLOOKUP("Beitrag",m_texte,v_sprachcode,FALSE) -> Beitrag
A17: SN | B17: =VLOOKUP("Name, Vorname",m_texte,v_sprachcode,FALSE) -> Name, Vorname | C17: Sex | D17: =VLOOKUP("Geb. Datum",m_texte,v_sprachcode,FALSE) -> Geb. Datum | G17: =VLOOKUP("gemeldet",m_texte,v_sprachcode,FALSE) -> gemeldet | H17: =VLOOKUP("vers. Basis ",m_texte,v_sprachcode,FALSE) -> vers. Basis | I17: =VLOOKUP("vers. Zusatz",m_texte,v_sprachcode,FALSE) -> vers. Zusatz | J17: =VLOOKUP("AGH total ",m_texte,v_sprachcode,FALSE) -> AGH total | K17: =VLOOKUP("davon BVG",m_texte,v_sprachcode,FALSE) -> davon BVG | L17: =VLOOKUP("ohne Zins",m_texte,v_sprachcode,FALSE) -> ohne Zins | M17: =VLOOKUP("mit Zins",m_texte,v_sprachcode,FALSE) -> mit Zins | T17: % | U17: CHF | V17: % | W17: CHF | Z17: =VLOOKUP("Total",m_texte,v_sprachcode,FALSE) -> Total | AA17: =VLOOKUP("Arbeit-nehmer",m_texte,v_sprachcode,FALSE) -> Arbeit-nehmer
